Workbook

Sheet DADOS
A1: 41211 | B1: QCI - Quadro de Composição do Investimento / RRE - Relatório Resumo do Empreendimento
A2: v009
A3: INSTRUÇÕES DE USO E PREENCHIMENTO
A5: 1. Este documento somente pode ser utilizado nas versões do Excel 2003 ou superior. Não deve ser utilizado versões do BROffice. O Documento deve ser salvo SOMENTE em extensão habilitada para macros (.xls ou .xlsm). Se o documento for salvo na extensão .xlsx, o arquivo será INUTILIZADO.
A7: 2. Para funcionamento pleno desse arquivo, a Segurança de Macros do Excel deve ser habilitada.
A8: 2.1 Na Versão Excel 2003, selecione na Faixa de Opções: Ferramentas --> Macro --> Segurança --> Na aba Nível de Segurança selecione a Opção "Baixo" --> Clique em OK --> Feche e abra o Excel novamente para utilizar a Planilha.
A9: 2.2 Na Versão Excel 2007 ou superior, selecione na Faixa de Opções: Arquivo --> Opções --> Central de Confiabilidade --> Configurações da Central de Confiabilidade --> Configurações de Macro --> Habilitar todas as Macros --> Clique em OK --> Feche e abra o excel novamente para utilizar a Planilha.
A11: 3. O Preenchimento deve ser feito somente nas células em amarelo. As outras células são de preenchimento Automático.
A13: 4. Ordem de Preenchimento
A14: 4.1. Fase de Análise
A15: 4.1.1. Primeiramente, preencha no Quadro abaixo os Dados do TC/CR:
A21: Nº OPERAÇÃO | B21: Nº SICONV | C21: GESTOR | E21: PROGRAMA | G21: AÇÃO / MODALIDADE | J21: RECURSO
A22: 1.037.474-20/2017 | B22: 844520/2017 | C22: Ministerio das Cidades | E22: Planejamento Urbano | G22: Contrato de repasse | J22: OGU não-PAC
A24: PROPONENTE / TOMADOR | E24: MUNICÍPIO / UF | F24: LOCALIDADE / ENDEREÇO
A25: Município de Bom Jesus | E25: Bom Jesus / SC | F25: Rua Domingos Michelin | H25: VALORES CONTRATADOS (R$)
A27: OBJETO | F27: APELIDO DO EMPREENDIMENTO | H27: =IF($J$22="FGTS","FINANCIAMENTO","REPASSE") -> REPASSE | I27: CONTRAPARTIDA | J27: INVESTIMENTO
A28: Implantação de pavimentação asfaltica em vias urbanas do Município de Bom Jesus SC. | H28: 245850 | I28: 11145.37 | J28: =H28+I28 -> 256995.37
A34: 4.1.2. Digite abaixo os valores mínimos de Contrapartida exigidos pelo Programa.
B36: % MÍNIMO | C36: VALOR ABSOLUTO (R$)
B37: 0.001
A40: 4.1.3. Clique no botão "Preencher QCI" abaixo.
A47: 4.1.4. Preencha os Campos das Metas na Aba QCI - Quadro de Composição de Investimento.
A48: 4.1.5. Preencha os Campos das Parcelas de Desembolso na Aba Crono - CFF-CT - Cronograma Físico-Financeiro do Contrato.
A50: 4.2. Fase de Licitação
A51: 4.2.1. Atualize os Dados do QCI e Cronograma Físico-Financeiro.
A52: 4.2.2. Insira no Quadro abaixo os dados dos CTEFs.
B54: CTEF: | C54: Nome do Fornecedor: | F54: CNPJ / CPF:
B55: Adm. Direta
A79: 4.3. Fase de Solicitação de Recursos
A80: 4.3.1. Preencha os Dados da Medição na Aba RRE - Relatório Resumo do Empreendimento.
A81: 4.3.2. Preencha os Campos na Aba Ofício, para o Ofício de Solicitação de Recursos e Relação de Fornecedores.

Sheet QCI
Q1: sumvalue1 | X1: sumheight1
O2: Grau de Sigilo
B3: QCI - QUADRO DE COMPOSIÇÃO DO INVESTIMENTO | O3: #PUBLICO
G6: =CHOOSE(1+LOG(1+2*(OR(AND($O$15>0,$M$14<$Z$7),$M$15<ROUND($AA$7*$O$15,2)))+4*OR($L$7<0,$M$7<0)+8*(COUNTIF($L$15:$L$35,"<0")>0),2),"","ERRO: CONTRAPARTIDA MENOR QUE A MÍNIMA","ERRO: SALDO NEGATIVO","ERRO: VALORES DE REPASSE NEGATIVOS") ->  | K6: Saldo a Reprogramar | L6: =CRONO!$J$11 -> Repasse (R$) | M6: Contrapartida (R$) | S6: % Rateio CP Fin: | Z6: % CP Min Prog: | AA6: % CP Absoluta: | AB6: % CP Max Rep: | AC6: % Maior:
L7: =DADOS!H$28-L$15 -> 0 | M7: =DADOS!I$28-M$15 -> 0 | S7: =IF(OR($O$15=CalculadoInv,$O$15=0),0,MIN(MAX(0,($AC$7*$O$15-CalculadoCPFin)/($O$15-CalculadoInv)),1)) -> 0.04336797974 | Z7: =ROUND(DADOS!$B$37,4) -> 0.001 | AA7: =IF($O$15=0,0,DADOS!$C$37/$O$15) -> 0 | AB7: =IF($O$15=0,0,($O$15-$AC$15-DADOS!$H$28)/$O$15) -> 0.04336797974 | AC7: =MAX(Z7:AB7) -> 0.04336797974
B9: Etapa | C9: Meta / Sub-Meta | E9: Item de Investimento | F9: Sub-Item de Investimento | G9: Descrição da Meta / Sub-Meta | H9: Situação | I9: Quantidade | J9: Unid. | K9: Lote de Licitação / nº CTEF | L9: =IF(DADOS!$J$22="FGTS","Financiamento","Repasse") -> Repasse | M9: Contrapartida Financeira | N9: Outros | O9: Investimento | Q9: Investimento | R9: Divisão do Investimento | S9: Contrapartida Financeira | T9: =N9 -> Outros | V9: Nº Meta | W9: Nº Sub-Meta | X9: Altura | Y9: Somar Meta | AH9: Lotes | AI9: Total Etapa
AA10: Valores Previstos
B11: 1 | C11: Meta | D11: =CONCATENATE($V11,".",IF($C11="Sub-Meta",$W11,"")) -> 1. | J11: =VLOOKUP($F11,OFFSET(Listas!$A$2,1,MATCH(QCI!$E11,Listas!$2:$2,0)-1,100,50),2,FALSE) ->  | L11: =IF($Y11,ROUND(O11,2)-ROUND(N11,2)-ROUND(M11,2),SUM(OFFSET(L11,1,0,$X11))) -> 0 | M11: =IF($Y11,AB11-ROUND($AF11,2),SUM(OFFSET(M11,1,0,$X11))) -> 0 | N11: =IF($Y11,AC11,SUM(OFFSET(N11,1,0,$X11))) -> 0 | O11: =IF($Y11,ROUND($Q11,2),SUM(OFFSET(O11,1,0,$X11))) -> 0 | Q11: 0 | R11: Proporcional | S11: =IF($K11="Adm. Direta",0,$O11) -> 0 | T11: =IF($K11="Adm. Direta",$O11,0) -> 0 | V11: =IF($C11="Sub-Meta",OFFSET(V11,-1,0),OFFSET(V11,-1,0)+1) -> 1 | W11: =IF($C11="Sub-Meta",OFFSET(W11,-1,0)+1,0) -> 0 | X11: =IF(Y11,0,COUNTIF(OFFSET($V11,1,0):$V$26,$V11)) -> 0 | Y11: =NOT(AND($C11<>"Sub-Meta",OFFSET($C11,1,0)="Sub-Meta")) -> TRUE | AA11: =IF($Y11,$O11-$AB11-$AC11,"-") -> 0 | AB11: =IF($Y11,IF($R11="Calculado",ROUND($S11,2),ROUND($S$7*$O11,2)),"-") -> 0 | AC11: =IF($Y11,IF($R11="Calculado",ROUND($T11,2),0),"-") -> 0 | AE11: =AND($Y11,$S$7>0,$S$7<1,O11>0,$R11<>"Calculado",OR($AC$7=$AB$7,$AC$7=$AA$7,$AC$7=$Z$7)) -> FALSE | AF11: =IF(AND($AE11,O11>0,COUNTIF(OFFSET($AE11,1,0):$AE$26,TRUE)=0),CHOOSE(1+LOG(1+2*($AC$7=$Z$7)+4*($AC$7=$AA$7)+8*($AC$7=$AB$7),2),0,$AB$15-ROUND(DADOS!$B$37*$O$15,2),$AB$15-DADOS!$C$37,DADOS!$H$28-$AA$15),0) -> 0 | AH11: =CONCATENATE("Lote ",ROW(A11)-ROW($A$15)) -> Lote -4 | AI11: =IF($C11="Meta",$B11,0) -> 1
C14: TOTAL | L14: =IF(ISERROR(L15/$O15),0,ROUND(L15/$O15,4)) -> 0.9566 | M14: =IF(ISERROR(M15/$O15),0,ROUND(M15/$O15,4)) -> 0.0434 | N14: =IF(ISERROR(N15/$O15),0,ROUND(N15/$O15,4)) -> 0 | O14: =IF(ISERROR(O15/$O15),0,ROUND(O15/$O15,4)) -> 1 | AA14: Repasse | AB14: CP Financeira | AC14: CP Fís / Outros | AE14: Arred
L15: =ROUND(SUMIF($Y$15:$Y$26,TRUE,L$15:L$26),2) -> 245850 | M15: =ROUND(SUMIF($Y$15:$Y$26,TRUE,M$15:M$26),2) -> 11145.37 | N15: =ROUND(SUMIF($Y$15:$Y$26,TRUE,N$15:N$26),2) -> 0 | O15: =ROUND(SUMIF($Y$16:$Y$26,TRUE,O$16:O$26),2) -> 256995.37 | AA15: =ROUND(SUMIF($Y$16:$Y$26,TRUE,AA$16:AA$26),2) -> 245850 | AB15: =ROUND(SUMIF($Y$16:$Y$26,TRUE,AB$16:AB$26),2) -> 11145.37 | AC15: =ROUND(SUMIF($Y$16:$Y$26,TRUE,AC$16:AC$26),2) -> 0 | AH15: Adm. Direta
B16: 1 | C16: Meta | D16: =CONCATENATE($V16,".",IF($C16="Sub-Meta",$W16,"")) -> 1. | E16: Pavimentação | F16: Capeamento de vias | G16: Capeamento asfaltico da Rua Domingos Michelin | H16: Em Análise | I16: 4134 | J16: =VLOOKUP($F16,OFFSET(Listas!$A$2,1,MATCH(QCI!$E16,Listas!$2:$2,0)-1,100,50),2,FALSE) -> m² | K16: Lote 1 | L16: =IF($Y16,ROUND(O16,2)-ROUND(N16,2)-ROUND(M16,2),SUM(OFFSET(L16,1,0,$X16))) -> 245850 | M16: =IF($Y16,AB16-ROUND($AF16,2),SUM(OFFSET(M16,1,0,$X16))) -> 11145.37 | N16: =IF($Y16,AC16,SUM(OFFSET(N16,1,0,$X16))) -> 0 | O16: =IF($Y16,ROUND($Q16,2),SUM(OFFSET(O16,1,0,$X16))) -> 256995.37 | Q16: 256995.37 | R16: Proporcional | S16: =IF($K16="Adm. Direta",0,$O16) -> 256995.37 | T16: =IF($K16="Adm. Direta",$O16,0) -> 0 | V16: =IF($C16="Sub-Meta",OFFSET(V16,-1,0),OFFSET(V16,-1,0)+1) -> 1 | W16: =IF($C16="Sub-Meta",OFFSET(W16,-1,0)+1,0) -> 0 | X16: =IF(Y16,0,COUNTIF(OFFSET($V16,1,0):$V$26,$V16)) -> 0 | Y16: =NOT(AND($C16<>"Sub-Meta",OFFSET($C16,1,0)="Sub-Meta")) -> TRUE | AA16: =IF($Y16,$O16-$AB16-$AC16,"-") -> 245850 | AB16: =IF($Y16,IF($R16="Calculado",ROUND($S16,2),ROUND($S$7*$O16,2)),"-") -> 11145.37 | AC16: =IF($Y16,IF($R16="Calculado",ROUND($T16,2),0),"-") -> 0 | AE16: =AND($Y16,$S$7>0,$S$7<1,O16>0,$R16<>"Calculado",OR($AC$7=$AB$7,$AC$7=$AA$7,$AC$7=$Z$7)) -> TRUE | AF16: =IF(AND($AE16,O16>0,COUNTIF(OFFSET($AE16,1,0):$AE$26,TRUE)=0),CHOOSE(1+LOG(1+2*($AC$7=$Z$7)+4*($AC$7=$AA$7)+8*($AC$7=$AB$7),2),0,$AB$15-ROUND(DADOS!$B$37*$O$15,2),$AB$15-DADOS!$C$37,DADOS!$H$28-$AA$15),0) -> 0 | AH16: =CONCATENATE("Lote ",ROW(A16)-ROW($A$15)) -> Lote 1 | AI16: =IF($C16="Meta",$B16,0) -> 1
B17: 1 | C17: Meta | D17: =CONCATENATE($V17,".",IF($C17="Sub-Meta",$W17,"")) -> 2. | J17: =VLOOKUP($F17,OFFSET(Listas!$A$2,1,MATCH(QCI!$E17,Listas!$2:$2,0)-1,100,50),2,FALSE) ->  | L17: =IF($Y17,ROUND(O17,2)-ROUND(N17,2)-ROUND(M17,2),SUM(OFFSET(L17,1,0,$X17))) -> 0 | M17: =IF($Y17,AB17-ROUND($AF17,2),SUM(OFFSET(M17,1,0,$X17))) -> 0 | N17: =IF($Y17,AC17,SUM(OFFSET(N17,1,0,$X17))) -> 0 | O17: =IF($Y17,ROUND($Q17,2),SUM(OFFSET(O17,1,0,$X17))) -> 0 | Q17: 0 | R17: Proporcional | S17: 0 | T17: 0 | V17: =IF($C17="Sub-Meta",OFFSET(V17,-1,0),OFFSET(V17,-1,0)+1) -> 2 | W17: =IF($C17="Sub-Meta",OFFSET(W17,-1,0)+1,0) -> 0 | X17: =IF(Y17,0,COUNTIF(OFFSET($V17,1,0):$V$26,$V17)) -> 0 | Y17: =NOT(AND($C17<>"Sub-Meta",OFFSET($C17,1,0)="Sub-Meta")) -> TRUE | AA17: =IF($Y17,$O17-$AB17-$AC17,"-") -> 0 | AB17: =IF($Y17,IF($R17="Calculado",ROUND($S17,2),ROUND($S$7*$O17,2)),"-") -> 0 | AC17: =IF($Y17,IF($R17="Calculado",ROUND($T17,2),0),"-") -> 0 | AE17: =AND($Y17,$S$7>0,$S$7<1,O17>0,$R17<>"Calculado",OR($AC$7=$AB$7,$AC$7=$AA$7,$AC$7=$Z$7)) -> FALSE | AF17: =IF(AND($AE17,O17>0,COUNTIF(OFFSET($AE17,1,0):$AE$26,TRUE)=0),CHOOSE(1+LOG(1+2*($AC$7=$Z$7)+4*($AC$7=$AA$7)+8*($AC$7=$AB$7),2),0,$AB$15-ROUND(DADOS!$B$37*$O$15,2),$AB$15-DADOS!$C$37,DADOS!$H$28-$AA$15),0) -> 0 | AH17: =CONCATENATE("Lote ",ROW(A17)-ROW($A$15)) -> Lote 2 | AI17: =IF($C17="Meta",$B17,0) -> 1
B18: 1 | C18: Meta | D18: 3. | J18: =VLOOKUP($F18,OFFSET(Listas!$A$2,1,MATCH(QCI!$E18,Listas!$2:$2,0)-1,100,50),2,FALSE) ->  | L18: 0 | M18: 0 | N18: 0 | O18: 0 | Q18: 0 | R18: Proporcional | S18: 0 | T18: 0 | V18: 3 | W18: 0 | X18: =IF(Y18,0,COUNTIF(OFFSET($V18,1,0):$V$26,$V18)) -> 0 | Y18: TRUE | AA18: 0 | AB18: 0 | AC18: 0 | AE18: FALSE | AF18: =IF(AND($AE18,O18>0,COUNTIF(OFFSET($AE18,1,0):$AE$26,TRUE)=0),CHOOSE(1+LOG(1+2*($AC$7=$Z$7)+4*($AC$7=$AA$7)+8*($AC$7=$AB$7),2),0,$AB$15-ROUND(DADOS!$B$37*$O$15,2),$AB$15-DADOS!$C$37,DADOS!$H$28-$AA$15),0) -> 0 | AH18: Lote 3 | AI18: 1
B19: 1 | C19: Meta | D19: 4. | J19: =VLOOKUP($F19,OFFSET(Listas!$A$2,1,MATCH(QCI!$E19,Listas!$2:$2,0)-1,100,50),2,FALSE) ->  | L19: 0 | M19: 0 | N19: 0 | O19: 0 | Q19: 0 | R19: Proporcional | S19: 0 | T19: 0 | V19: 4 | W19: 0 | X19: =IF(Y19,0,COUNTIF(OFFSET($V19,1,0):$V$26,$V19)) -> 0 | Y19: TRUE | AA19: 0 | AB19: 0 | AC19: 0 | AE19: FALSE | AF19: =IF(AND($AE19,O19>0,COUNTIF(OFFSET($AE19,1,0):$AE$26,TRUE)=0),CHOOSE(1+LOG(1+2*($AC$7=$Z$7)+4*($AC$7=$AA$7)+8*($AC$7=$AB$7),2),0,$AB$15-ROUND(DADOS!$B$37*$O$15,2),$AB$15-DADOS!$C$37,DADOS!$H$28-$AA$15),0) -> 0 | AH19: Lote 4 | AI19: 1
B20: 1 | C20: Meta | D20: 5. | J20: =VLOOKUP($F20,OFFSET(Listas!$A$2,1,MATCH(QCI!$E20,Listas!$2:$2,0)-1,100,50),2,FALSE) ->  | L20: 0 | M20: 0 | N20: 0 | O20: 0 | Q20: 0 | R20: Proporcional | S20: 0 | T20: 0 | V20: 5 | W20: 0 | X20: =IF(Y20,0,COUNTIF(OFFSET($V20,1,0):$V$26,$V20)) -> 0 | Y20: TRUE | AA20: 0 | AB20: 0 | AC20: 0 | AE20: FALSE | AF20: =IF(AND($AE20,O20>0,COUNTIF(OFFSET($AE20,1,0):$AE$26,TRUE)=0),CHOOSE(1+LOG(1+2*($AC$7=$Z$7)+4*($AC$7=$AA$7)+8*($AC$7=$AB$7),2),0,$AB$15-ROUND(DADOS!$B$37*$O$15,2),$AB$15-DADOS!$C$37,DADOS!$H$28-$AA$15),0) -> 0 | AH20: Lote 5 | AI20: 1
B21: 1 | C21: Meta | D21: 6. | J21: =VLOOKUP($F21,OFFSET(Listas!$A$2,1,MATCH(QCI!$E21,Listas!$2:$2,0)-1,100,50),2,FALSE) ->  | L21: 0 | M21: 0 | N21: 0 | O21: 0 | Q21: 0 | R21: Proporcional | S21: 0 | T21: 0 | V21: 6 | W21: 0 | X21: =IF(Y21,0,COUNTIF(OFFSET($V21,1,0):$V$26,$V21)) -> 0 | Y21: TRUE | AA21: 0 | AB21: 0 | AC21: 0 | AE21: FALSE | AF21: =IF(AND($AE21,O21>0,COUNTIF(OFFSET($AE21,1,0):$AE$26,TRUE)=0),CHOOSE(1+LOG(1+2*($AC$7=$Z$7)+4*($AC$7=$AA$7)+8*($AC$7=$AB$7),2),0,$AB$15-ROUND(DADOS!$B$37*$O$15,2),$AB$15-DADOS!$C$37,DADOS!$H$28-$AA$15),0) -> 0 | AH21: Lote 6 | AI21: 1
B22: 1 | C22: Meta | D22: 7. | J22: =VLOOKUP($F22,OFFSET(Listas!$A$2,1,MATCH(QCI!$E22,Listas!$2:$2,0)-1,100,50),2,FALSE) ->  | L22: 0 | M22: 0 | N22: 0 | O22: 0 | Q22: 0 | R22: Proporcional | S22: 0 | T22: 0 | V22: 7 | W22: 0 | X22: =IF(Y22,0,COUNTIF(OFFSET($V22,1,0):$V$26,$V22)) -> 0 | Y22: TRUE | AA22: 0 | AB22: 0 | AC22: 0 | AE22: FALSE | AF22: =IF(AND($AE22,O22>0,COUNTIF(OFFSET($AE22,1,0):$AE$26,TRUE)=0),CHOOSE(1+LOG(1+2*($AC$7=$Z$7)+4*($AC$7=$AA$7)+8*($AC$7=$AB$7),2),0,$AB$15-ROUND(DADOS!$B$37*$O$15,2),$AB$15-DADOS!$C$37,DADOS!$H$28-$AA$15),0) -> 0 | AH22: Lote 7 | AI22: 1
B23: 1 | C23: Meta | D23: 8. | J23: =VLOOKUP($F23,OFFSET(Listas!$A$2,1,MATCH(QCI!$E23,Listas!$2:$2,0)-1,100,50),2,FALSE) ->  | L23: 0 | M23: 0 | N23: 0 | O23: 0 | Q23: 0 | R23: Proporcional | S23: 0 | T23: 0 | V23: 8 | W23: 0 | X23: =IF(Y23,0,COUNTIF(OFFSET($V23,1,0):$V$26,$V23)) -> 0 | Y23: TRUE | AA23: 0 | AB23: 0 | AC23: 0 | AE23: FALSE | AF23: =IF(AND($AE23,O23>0,COUNTIF(OFFSET($AE23,1,0):$AE$26,TRUE)=0),CHOOSE(1+LOG(1+2*($AC$7=$Z$7)+4*($AC$7=$AA$7)+8*($AC$7=$AB$7),2),0,$AB$15-ROUND(DADOS!$B$37*$O$15,2),$AB$15-DADOS!$C$37,DADOS!$H$28-$AA$15),0) -> 0 | AH23: Lote 8 | AI23: 1
B24: 1 | C24: Meta | D24: 9. | J24: =VLOOKUP($F24,OFFSET(Listas!$A$2,1,MATCH(QCI!$E24,Listas!$2:$2,0)-1,100,50),2,FALSE) ->  | L24: 0 | M24: 0 | N24: 0 | O24: 0 | Q24: 0 | R24: Proporcional | S24: 0 | T24: 0 | V24: 9 | W24: 0 | X24: =IF(Y24,0,COUNTIF(OFFSET($V24,1,0):$V$26,$V24)) -> 0 | Y24: TRUE | AA24: 0 | AB24: 0 | AC24: 0 | AE24: FALSE | AF24: =IF(AND($AE24,O24>0,COUNTIF(OFFSET($AE24,1,0):$AE$26,TRUE)=0),CHOOSE(1+LOG(1+2*($AC$7=$Z$7)+4*($AC$7=$AA$7)+8*($AC$7=$AB$7),2),0,$AB$15-ROUND(DADOS!$B$37*$O$15,2),$AB$15-DADOS!$C$37,DADOS!$H$28-$AA$15),0) -> 0 | AH24: Lote 9 | AI24: 1
B25: 1 | C25: Meta | D25: 10. | J25: =VLOOKUP($F25,OFFSET(Listas!$A$2,1,MATCH(QCI!$E25,Listas!$2:$2,0)-1,100,50),2,FALSE) ->  | L25: 0 | M25: 0 | N25: 0 | O25: 0 | Q25: 0 | R25: Proporcional | S25: 0 | T25: 0 | V25: 10 | W25: 0 | X25: =IF(Y25,0,COUNTIF(OFFSET($V25,1,0):$V$26,$V25)) -> 0 | Y25: TRUE | AA25: 0 | AB25: 0 | AC25: 0 | AE25: FALSE | AF25: =IF(AND($AE25,O25>0,COUNTIF(OFFSET($AE25,1,0):$AE$26,TRUE)=0),CHOOSE(1+LOG(1+2*($AC$7=$Z$7)+4*($AC$7=$AA$7)+8*($AC$7=$AB$7),2),0,$AB$15-ROUND(DADOS!$B$37*$O$15,2),$AB$15-DADOS!$C$37,DADOS!$H$28-$AA$15),0) -> 0 | AH25: Lote 10 | AI25: 1
B28: Observações:
I32: TOTAL - ETAPA | K32: 1 | L32: =SUMIF($AI$15:$AI$26,$K32,L$15:L$26) -> 245850 | M32: 11145.37 | N32: 0 | O32: 256995.37
K33: =OFFSET(K33,-1,0)+1 -> 2 | L33: 0 | M33: 0 | N33: 0 | O33: 0
K34: =OFFSET(K34,-1,0)+1 -> 3 | L34: 0 | M34: 0 | N34: 0 | O34: 0
C35: Representante Tomador / Agente Promotor
C36: Nome: | D36: Rafael Calza | H36: Local: | I36: Bom Jesus - SC
C37: Cargo: | D37: Prefeito Municipal | H37: Data: | I37: =TODAY() -> 2018-01-25

Sheet CRONO
R1: =QCI!$O$2 -> Grau de Sigilo
K2: CFF-CT - CRONOGRAMA FÍSICO FINANCEIRO DO CONTRATO | R2: =QCI!$O$3 -> #PUBLICO
B5: Informação da 1ª Coluna | E5: =CHOOSE(1+LOG(1+2*(OFFSET(S16,0,-1)<>$I$16)+4*(COUNTIF($K$15:$S$15,">1")>0)+8*(OFFSET(S19,0,-1)<>$I$19)+16*(ROUND($I$19,2)=0),2),"","ERRO: DIVISÃO DO INVESTIMENTO NÃO CONFERE","ERRO: PARCELAS MAIORES QUE 100%","ERRO: CRONOGRAMA NÃO FECHA EM 100%","") ->  | I5: =IF($B$6=2,"Qtde de Medições realizadas","") ->  | J5: =IF($B$6=2,"Reinício Previsto","Início Previsto") -> Início Previsto
B6: 1 | I6: 1 | J6: 2017-12-01
J7: =IF(AND($B$6=2,$I$6>0),$I$6-1,0) -> 0 | K7: =OFFSET(K7,0,-1)+1 -> 1 | L7: 2 | M7: 3 | N7: 4 | O7: 5 | P7: 6 | Q7: 7 | R7: 8 | X7: =OFFSET(X7,0,-1)+1 -> 1
E8: Etapa | F8: Meta / Sub-Meta | H8: Descrição da Meta / Sub-Meta | I8: Valores Totais (R$) | K8: =IF(K7=0,CONCATENATE("Parcela ",$I$6),CONCATENATE("Parcela ",K7)) -> Parcela 1 | L8: =IF(L7=0,CONCATENATE("Parcela ",$I$6),CONCATENATE("Parcela ",L7)) -> Parcela 2 | M8: =IF(M7=0,CONCATENATE("Parcela ",$I$6),CONCATENATE("Parcela ",M7)) -> Parcela 3 | N8: Parcela 4 | O8: Parcela 5 | P8: Parcela 6 | Q8: Parcela 7 | R8: Parcela 8 | X8: =IF(X7=0,CONCATENATE("Parcela ",$I$6),CONCATENATE("Parcela ",X7)) -> Parcela 1
A9: Altura | B9: SOMASE | C9: Valores | K9: =IF(AND($B$6=2,$I$6>0,J8=0),"Executado",DATE(YEAR($J$6),MONTH($J$6)+K7-IF(AND($B$6=2,$I$6>0),$I$6,0),1)) -> 2018-01-01 | L9: 2018-02-01 | M9: 2018-03-01 | N9: 2018-04-01 | O9: 2018-05-01 | P9: 2018-06-01 | Q9: 2018-07-01 | R9: 2018-08-01 | X9: =IF(AND($B$6=2,$I$6>0,W8=0),"Executado",DATE(YEAR($J$6),MONTH($J$6)+X7-IF(AND($B$6=2,$I$6>0),$I$6,0),1)) -> 2018-01-01
H10: Parcela | I10: 0 | J10: (%) | K10: =IF(COLUMN()-COLUMN($J$8)>1,K15-J15,K15) -> 0.3686 | L10: 0.4379 | M10: 0.1935 | N10: 0 | O10: 0 | P10: 0 | Q10: 0 | R10: 0 | X10: =IF(COLUMN()-COLUMN($J$8)>1,X15-W15,X15) -> 1
B11: =J11 -> Repasse (R$) | I11: 0 | J11: =IF(DADOS!$J$22="FGTS","Financ. (R$)","Repasse (R$)") -> Repasse (R$) | K11: =IF(COLUMN()-COLUMN($J$8)>1,K16-J16,K16) -> 90619.01 | L11: 107651.41 | M11: 47579.58 | N11: 0 | O11: 0 | P11: 0 | Q11: 0 | R11: 0 | X11: =IF(COLUMN()-COLUMN($J$8)>1,X16-W16,X16) -> 245850
B12: =J12 -> CP Fin. (R$) | I12: 0 | J12: CP Fin. (R$) | K12: =IF(COLUMN()-COLUMN($J$8)>1,K17-J17,K17) -> 4108.12 | L12: 4880.28 | M12: 2156.97 | N12: 0 | O12: 0 | P12: 0 | Q12: 0 | R12: 0 | X12: =IF(COLUMN()-COLUMN($J$8)>1,X17-W17,X17) -> 11145.37
B13: Outros (R$) | I13: 0 | J13: =IF(QCI!$N$9="Outros","Outros (R$)","CP Fis. (R$)") -> Outros (R$) | K13: =IF(COLUMN()-COLUMN($J$8)>1,K18-J18,K18) -> 0 | L13: 0 | M13: 0 | N13: 0 | O13: 0 | P13: 0 | Q13: 0 | R13: 0 | X13: =IF(COLUMN()-COLUMN($J$8)>1,X18-W18,X18) -> 0
B14: Invest. (R$) | I14: 0 | J14: Invest. (R$) | K14: =IF(COLUMN()-COLUMN($J$8)>1,K19-J19,K19) -> 94727.13 | L14: 112531.69 | M14: 49736.55 | N14: 0 | O14: 0 | P14: 0 | Q14: 0 | R14: 0 | X14: =IF(COLUMN()-COLUMN($J$8)>1,X19-W19,X19) -> 256995.37
H15: Acumulado | I15: 0 | J15: (%) | K15: =ROUND(K19/$I19,4) -> 0.3686 | L15: 0.8065 | M15: 1 | N15: 1 | O15: 1 | P15: 1 | Q15: 1 | R15: 1 | X15: =ROUND(X19/$I19,4) -> 1
B16: Repasse (R$) | I16: =QCI!$L$15 -> 245850 | J16: =J11 -> Repasse (R$) | K16: =IF(K19=$I$19,$I$16,ROUND(K19,2)-ROUND(K18,2)-ROUND(K17,2)) -> 90619.01 | L16: 198270.42 | M16: 245850 | N16: 245850 | O16: 245850 | P16: 245850 | Q16: 245850 | R16: 245850 | X16: =IF(X19=$I$19,$I$16,ROUND(X19,2)-ROUND(X18,2)-ROUND(X17,2)) -> 245850
A17: =ROW($A$70)-ROW()-1 -> 52 | B17: CP Fin. (R$) | I17: =QCI!$M$15 -> 11145.37 | J17: CP Fin. (R$) | K17: =IF(K$14<SumCrono-IF(ISNUMBER(J17),J17,0),K$14+IF(ISNUMBER(J17),J17,0),MAX(SumCrono,IF(ISNUMBER(J17),J17,0))) -> 4108.12 | L17: 8988.4 | M17: 11145.37 | N17: 11145.37 | O17: 11145.37 | P17: 11145.37 | Q17: 11145.37 | R17: 11145.37 | X17: =IF(X$14<SumCrono-IF(ISNUMBER(W17),W17,0),X$14+IF(ISNUMBER(W17),W17,0),MAX(SumCrono,IF(ISNUMBER(W17),W17,0))) -> 11145.37
A18: =ROW($A$70)-ROW()-1 -> 51 | B18: Outros (R$) | I18: =QCI!$N$15 -> 0 | J18: =IF(QCI!$N$9="Outros","Outros (R$)","CP Fis. (R$)") -> Outros (R$) | K18: 0 | L18: 0 | M18: 0 | N18: 0 | O18: 0 | P18: 0 | Q18: 0 | R18: 0 | X18: =IF(X$14<SumCrono-IF(ISNUMBER(W18),W18,0),X$14+IF(ISNUMBER(W18),W18,0),MAX(SumCrono,IF(ISNUMBER(W18),W18,0))) -> 0
A19: =ROW($A$70)-ROW()-1 -> 50 | B19: Acum. Inv. (R$) | I19: =IF(QCI!$O$15=0,10^-12,QCI!$O$15) -> 256995.37 | J19: Acum. Inv. (R$) | K19: =IF(ISNUMBER(J19),IF(J19>SumCrono,J19,SumCrono),SumCrono) -> 94727.13 | L19: 207258.82 | M19: 256995.37 | N19: 256995.37 | O19: 256995.37 | P19: 256995.37 | Q19: 256995.37 | R19: 256995.37 | X19: =IF(ISNUMBER(W19),IF(W19>SumCrono,W19,SumCrono),SumCrono) -> 256995.37
A20: =OFFSET(QCI!X$16,(ROW(A20)-ROW(A$20))/numlinhaCrono,0)*numlinhaCrono -> 0 | B20: =OFFSET(QCI!Y$16,(ROW(B20)-ROW(B$20))/numlinhaCrono,0) -> TRUE | E20: =OFFSET(QCI!B$16,(ROW(E20)-ROW(E$20))/numlinhaCrono,0) -> 1 | F20: =OFFSET(QCI!C$16,(ROW(F20)-ROW(F$20))/numlinhaCrono,0) -> Meta | G20: =OFFSET(QCI!D$16,(ROW(G20)-ROW(G$20))/numlinhaCrono,0) -> 1. | H20: =OFFSET(QCI!G$16,(ROW(H20)-ROW(H$20))/numlinhaCrono,0) -> Capeamento asfaltico da Rua Domingos Michelin | I20: =C21 -> 256995.37 | J20: Acumulado (%) | K20: =IF($I20=0,0,MIN(1,MAX($K24:K24)/$I20)) -> 0.3685946949 | L20: =IF($I20=0,0,MIN(1,MAX($K24:L24)/$I20)) -> 0.8064690815 | M20: =IF($I20=0,0,MIN(1,MAX($K24:M24)/$I20)) -> 1 | N20: =IF($I20=0,0,MIN(1,MAX($K24:N24)/$I20)) -> 1 | O20: =IF($I20=0,0,MIN(1,MAX($K24:O24)/$I20)) -> 1 | P20: =IF($I20=0,0,MIN(1,MAX($K24:P24)/$I20)) -> 1 | Q20: =IF($I20=0,0,MIN(1,MAX($K24:Q24)/$I20)) -> 1 | R20: =IF($I20=0,0,MIN(1,MAX($K24:R24)/$I20)) -> 1 | X20: =IF($I20=0,0,MIN(1,MAX($K24:X24)/$I20)) -> 1
A21: =A20 -> 0 | C21: =OFFSET(QCI!$O$16,(ROW()-ROW(C$20))/numlinhaCrono,0) -> 256995.37 | J21: =J$19 -> Acum. Inv. (R$) | K21: 94727.13 | L21: 207258.82 | M21: 256995.37 | N21: =IF($B20,MAX($J24:M24),N24) -> 256995.37 | O21: =IF($B20,MAX($J24:N24),O24) -> 256995.37 | P21: =IF($B20,MAX($J24:O24),P24) -> 256995.37 | Q21: =IF($B20,MAX($J24:P24),Q24) -> 256995.37 | R21: =IF($B20,MAX($J24:Q24),R24) -> 256995.37 | X21: =IF($B20,MAX($J24:W24),X24) -> 256995.37
A22: =A21 -> 0 | B22: =IF(AND($B20,$C22>0),$J$17,"-") -> CP Fin. (R$) | C22: =OFFSET(QCI!$M$16,(ROW()-ROW(C$20))/numlinhaCrono,0) -> 11145.37 | J22: =J$17 -> CP Fin. (R$) | K22: =IF($B20,ROUND($C22*K20,2),ROUND(SumCrono,2)) -> 4108.12 | L22: 8988.4 | M22: 11145.37 | N22: 11145.37 | O22: 11145.37 | P22: 11145.37 | Q22: 11145.37 | R22: 11145.37 | X22: =IF($B20,ROUND($C22*X20,2),ROUND(SumCrono,2)) -> 11145.37
A23: =A22 -> 0 | B23: =IF(AND($B20,$C23>0),$J$18,"-") -> - | C23: =OFFSET(QCI!$N$16,(ROW()-ROW(C$20))/numlinhaCrono,0) -> 0 | J23: =J$18 -> Outros (R$) | K23: =IF($B20,ROUND($C23*K20,2),ROUND(SumCrono,2)) -> 0 | L23: 0 | M23: 0 | N23: 0 | O23: 0 | P23: 0 | Q23: 0 | R23: 0 | X23: =IF($B20,ROUND($C23*X20,2),ROUND(SumCrono,2)) -> 0
A24: =A23 -> 0 | B24: =IF(AND($B20,$C21>0),$J$19,"-") -> Acum. Inv. (R$) | C24: =OFFSET(QCI!$O$16,(ROW()-ROW(C$20))/numlinhaCrono,0) -> 256995.37 | J24: =J$19 -> Acum. Inv. (R$) | K24: =IF($B20,MIN($C24,MAX($K21:K21)),SumCrono) -> 94727.13 | L24: =IF($B20,MIN($C24,MAX($K21:L21)),SumCrono) -> 207258.82 | M24: =IF($B20,MIN($C24,MAX($K21:M21)),SumCrono) -> 256995.37 | N24: =IF($B20,MIN($C24,MAX($K21:N21)),SumCrono) -> 256995.37 | O24: =IF($B20,MIN($C24,MAX($K21:O21)),SumCrono) -> 256995.37 | P24: =IF($B20,MIN($C24,MAX($K21:P21)),SumCrono) -> 256995.37 | Q24: =IF($B20,MIN($C24,MAX($K21:Q21)),SumCrono) -> 256995.37 | R24: =IF($B20,MIN($C24,MAX($K21:R21)),SumCrono) -> 256995.37 | X24: =IF($B20,MIN($C24,MAX($K21:X21)),SumCrono) -> 256995.37
A25: =OFFSET(QCI!X$16,(ROW(A25)-ROW(A$20))/numlinhaCrono,0)*numlinhaCrono -> 0 | B25: =OFFSET(QCI!Y$16,(ROW(B25)-ROW(B$20))/numlinhaCrono,0) -> TRUE | E25: =OFFSET(QCI!B$16,(ROW(E25)-ROW(E$20))/numlinhaCrono,0) -> 1 | F25: =OFFSET(QCI!C$16,(ROW(F25)-ROW(F$20))/numlinhaCrono,0) -> Meta | G25: =OFFSET(QCI!D$16,(ROW(G25)-ROW(G$20))/numlinhaCrono,0) -> 2. | H25: =OFFSET(QCI!G$16,(ROW(H25)-ROW(H$20))/numlinhaCrono,0) -> 0 | I25: =C26 -> 0 | J25: Acumulado (%) | K25: =IF($I25=0,0,MIN(1,MAX($K29:K29)/$I25)) -> 0 | L25: =IF($I25=0,0,MIN(1,MAX($K29:L29)/$I25)) -> 0 | M25: =IF($I25=0,0,MIN(1,MAX($K29:M29)/$I25)) -> 0 | N25: =IF($I25=0,0,MIN(1,MAX($K29:N29)/$I25)) -> 0 | O25: =IF($I25=0,0,MIN(1,MAX($K29:O29)/$I25)) -> 0 | P25: =IF($I25=0,0,MIN(1,MAX($K29:P29)/$I25)) -> 0 | Q25: =IF($I25=0,0,MIN(1,MAX($K29:Q29)/$I25)) -> 0 | R25: =IF($I25=0,0,MIN(1,MAX($K29:R29)/$I25)) -> 0 | X25: =IF($I25=0,0,MIN(1,MAX($K29:X29)/$I25)) -> 0
A26: =A25 -> 0 | C26: =OFFSET(QCI!$O$16,(ROW()-ROW(C$20))/numlinhaCrono,0) -> 0 | J26: =J$19 -> Acum. Inv. (R$) | K26: =IF($B25,MAX($J29:J29),K29) -> 0 | L26: =IF($B25,MAX($J29:K29),L29) -> 0 | M26: =IF($B25,MAX($J29:L29),M29) -> 0 | N26: =IF($B25,MAX($J29:M29),N29) -> 0 | O26: =IF($B25,MAX($J29:N29),O29) -> 0 | P26: =IF($B25,MAX($J29:O29),P29) -> 0 | Q26: =IF($B25,MAX($J29:P29),Q29) -> 0 | R26: =IF($B25,MAX($J29:Q29),R29) -> 0 | X26: =IF($B25,MAX($J29:W29),X29) -> 0
A27: =A26 -> 0 | B27: =IF(AND($B25,$C27>0),$J$17,"-") -> - | C27: =OFFSET(QCI!$M$16,(ROW()-ROW(C$20))/numlinhaCrono,0) -> 0 | J27: =J$17 -> CP Fin. (R$) | K27: =IF($B25,ROUND($C27*K25,2),ROUND(SumCrono,2)) -> 0 | L27: 0 | M27: 0 | N27: 0 | O27: 0 | P27: 0 | Q27: 0 | R27: 0 | X27: =IF($B25,ROUND($C27*X25,2),ROUND(SumCrono,2)) -> 0
A28: =A27 -> 0 | B28: =IF(AND($B25,$C28>0),$J$18,"-") -> - | C28: =OFFSET(QCI!$N$16,(ROW()-ROW(C$20))/numlinhaCrono,0) -> 0 | J28: =J$18 -> Outros (R$) | K28: =IF($B25,ROUND($C28*K25,2),ROUND(SumCrono,2)) -> 0 | L28: 0 | M28: 0 | N28: 0 | O28: 0 | P28: 0 | Q28: 0 | R28: 0 | X28: =IF($B25,ROUND($C28*X25,2),ROUND(SumCrono,2)) -> 0
A29: =A28 -> 0 | B29: =IF(AND($B25,$C26>0),$J$19,"-") -> - | C29: =OFFSET(QCI!$O$16,(ROW()-ROW(C$20))/numlinhaCrono,0) -> 0 | J29: =J$19 -> Acum. Inv. (R$) | K29: =IF($B25,MIN($C29,MAX($K26:K26)),SumCrono) -> 0 | L29: =IF($B25,MIN($C29,MAX($K26:L26)),SumCrono) -> 0 | M29: =IF($B25,MIN($C29,MAX($K26:M26)),SumCrono) -> 0 | N29: =IF($B25,MIN($C29,MAX($K26:N26)),SumCrono) -> 0 | O29: =IF($B25,MIN($C29,MAX($K26:O26)),SumCrono) -> 0 | P29: =IF($B25,MIN($C29,MAX($K26:P26)),SumCrono) -> 0 | Q29: =IF($B25,MIN($C29,MAX($K26:Q26)),SumCrono) -> 0 | R29: =IF($B25,MIN($C29,MAX($K26:R26)),SumCrono) -> 0 | X29: =IF($B25,MIN($C29,MAX($K26:X26)),SumCrono) -> 0
A30: =OFFSET(QCI!X$16,(ROW(A30)-ROW(A$20))/numlinhaCrono,0)*numlinhaCrono -> 0 | B30: =OFFSET(QCI!Y$16,(ROW(B30)-ROW(B$20))/numlinhaCrono,0) -> TRUE | E30: =OFFSET(QCI!B$16,(ROW(E30)-ROW(E$20))/numlinhaCrono,0) -> 1 | F30: =OFFSET(QCI!C$16,(ROW(F30)-ROW(F$20))/numlinhaCrono,0) -> Meta | G30: =OFFSET(QCI!D$16,(ROW(G30)-ROW(G$20))/numlinhaCrono,0) -> 3. | H30: =OFFSET(QCI!G$16,(ROW(H30)-ROW(H$20))/numlinhaCrono,0) -> 0 | I30: =C31 -> 0 | J30: Acumulado (%) | K30: =IF($I30=0,0,MIN(1,MAX($K34:K34)/$I30)) -> 0 | L30: =IF($I30=0,0,MIN(1,MAX($K34:L34)/$I30)) -> 0 | M30: =IF($I30=0,0,MIN(1,MAX($K34:M34)/$I30)) -> 0 | N30: =IF($I30=0,0,MIN(1,MAX($K34:N34)/$I30)) -> 0 | O30: =IF($I30=0,0,MIN(1,MAX($K34:O34)/$I30)) -> 0 | P30: =IF($I30=0,0,MIN(1,MAX($K34:P34)/$I30)) -> 0 | Q30: =IF($I30=0,0,MIN(1,MAX($K34:Q34)/$I30)) -> 0 | R30: =IF($I30=0,0,MIN(1,MAX($K34:R34)/$I30)) -> 0 | X30: =IF($I30=0,0,MIN(1,MAX($K34:X34)/$I30)) -> 0
A31: =A30 -> 0 | C31: =OFFSET(QCI!$O$16,(ROW()-ROW(C$20))/numlinhaCrono,0) -> 0 | J31: =J$19 -> Acum. Inv. (R$) | K31: =IF($B30,MAX($J34:J34),K34) -> 0 | L31: =IF($B30,MAX($J34:K34),L34) -> 0 | M31: =IF($B30,MAX($J34:L34),M34) -> 0 | N31: =IF($B30,MAX($J34:M34),N34) -> 0 | O31: =IF($B30,MAX($J34:N34),O34) -> 0 | P31: =IF($B30,MAX($J34:O34),P34) -> 0 | Q31: =IF($B30,MAX($J34:P34),Q34) -> 0 | R31: =IF($B30,MAX($J34:Q34),R34) -> 0 | X31: =IF($B30,MAX($J34:W34),X34) -> 0
A32: =A31 -> 0 | B32: =IF(AND($B30,$C32>0),$J$17,"-") -> - | C32: =OFFSET(QCI!$M$16,(ROW()-ROW(C$20))/numlinhaCrono,0) -> 0 | J32: =J$17 -> CP Fin. (R$) | K32: =IF($B30,ROUND($C32*K30,2),ROUND(SumCrono,2)) -> 0 | L32: 0 | M32: 0 | N32: 0 | O32: 0 | P32: 0 | Q32: 0 | R32: 0 | X32: =IF($B30,ROUND($C32*X30,2),ROUND(SumCrono,2)) -> 0
A33: =A32 -> 0 | B33: =IF(AND($B30,$C33>0),$J$18,"-") -> - | C33: =OFFSET(QCI!$N$16,(ROW()-ROW(C$20))/numlinhaCrono,0) -> 0 | J33: =J$18 -> Outros (R$) | K33: =IF($B30,ROUND($C33*K30,2),ROUND(SumCrono,2)) -> 0 | L33: 0 | M33: 0 | N33: 0 | O33: 0 | P33: 0 | Q33: 0 | R33: 0 | X33: =IF($B30,ROUND($C33*X30,2),ROUND(SumCrono,2)) -> 0
A34: =A33 -> 0 | B34: =IF(AND($B30,$C31>0),$J$19,"-") -> - | C34: =OFFSET(QCI!$O$16,(ROW()-ROW(C$20))/numlinhaCrono,0) -> 0 | J34: =J$19 -> Acum. Inv. (R$) | K34: =IF($B30,MIN($C34,MAX($K31:K31)),SumCrono) -> 0 | L34: =IF($B30,MIN($C34,MAX($K31:L31)),SumCrono) -> 0 | M34: =IF($B30,MIN($C34,MAX($K31:M31)),SumCrono) -> 0 | N34: =IF($B30,MIN($C34,MAX($K31:N31)),SumCrono) -> 0 | O34: =IF($B30,MIN($C34,MAX($K31:O31)),SumCrono) -> 0 | P34: =IF($B30,MIN($C34,MAX($K31:P31)),SumCrono) -> 0 | Q34: =IF($B30,MIN($C34,MAX($K31:Q31)),SumCrono) -> 0 | R34: =IF($B30,MIN($C34,MAX($K31:R31)),SumCrono) -> 0 | X34: =IF($B30,MIN($C34,MAX($K31:X31)),SumCrono) -> 0
A35: =OFFSET(QCI!X$16,(ROW(A35)-ROW(A$20))/numlinhaCrono,0)*numlinhaCrono -> 0 | B35: =OFFSET(QCI!Y$16,(ROW(B35)-ROW(B$20))/numlinhaCrono,0) -> TRUE | E35: =OFFSET(QCI!B$16,(ROW(E35)-ROW(E$20))/numlinhaCrono,0) -> 1 | F35: =OFFSET(QCI!C$16,(ROW(F35)-ROW(F$20))/numlinhaCrono,0) -> Meta | G35: =OFFSET(QCI!D$16,(ROW(G35)-ROW(G$20))/numlinhaCrono,0) -> 4. | H35: =OFFSET(QCI!G$16,(ROW(H35)-ROW(H$20))/numlinhaCrono,0) -> 0 | I35: =C36 -> 0 | J35: Acumulado (%) | K35: =IF($I35=0,0,MIN(1,MAX($K39:K39)/$I35)) -> 0 | L35: =IF($I35=0,0,MIN(1,MAX($K39:L39)/$I35)) -> 0 | M35: =IF($I35=0,0,MIN(1,MAX($K39:M39)/$I35)) -> 0 | N35: =IF($I35=0,0,MIN(1,MAX($K39:N39)/$I35)) -> 0 | O35: =IF($I35=0,0,MIN(1,MAX($K39:O39)/$I35)) -> 0 | P35: =IF($I35=0,0,MIN(1,MAX($K39:P39)/$I35)) -> 0 | Q35: =IF($I35=0,0,MIN(1,MAX($K39:Q39)/$I35)) -> 0 | R35: =IF($I35=0,0,MIN(1,MAX($K39:R39)/$I35)) -> 0 | X35: =IF($I35=0,0,MIN(1,MAX($K39:X39)/$I35)) -> 0
A36: =A35 -> 0 | C36: =OFFSET(QCI!$O$16,(ROW()-ROW(C$20))/numlinhaCrono,0) -> 0 | J36: =J$19 -> Acum. Inv. (R$) | K36: =IF($B35,MAX($J39:J39),K39) -> 0 | L36: =IF($B35,MAX($J39:K39),L39) -> 0 | M36: =IF($B35,MAX($J39:L39),M39) -> 0 | N36: =IF($B35,MAX($J39:M39),N39) -> 0 | O36: =IF($B35,MAX($J39:N39),O39) -> 0 | P36: =IF($B35,MAX($J39:O39),P39) -> 0 | Q36: =IF($B35,MAX($J39:P39),Q39) -> 0 | R36: =IF($B35,MAX($J39:Q39),R39) -> 0 | X36: =IF($B35,MAX($J39:W39),X39) -> 0
A37: =A36 -> 0 | B37: =IF(AND($B35,$C37>0),$J$17,"-") -> - | C37: =OFFSET(QCI!$M$16,(ROW()-ROW(C$20))/numlinhaCrono,0) -> 0 | J37: =J$17 -> CP Fin. (R$) | K37: =IF($B35,ROUND($C37*K35,2),ROUND(SumCrono,2)) -> 0 | L37: 0 | M37: 0 | N37: 0 | O37: 0 | P37: 0 | Q37: 0 | R37: 0 | X37: =IF($B35,ROUND($C37*X35,2),ROUND(SumCrono,2)) -> 0
A38: =A37 -> 0 | B38: =IF(AND($B35,$C38>0),$J$18,"-") -> - | C38: =OFFSET(QCI!$N$16,(ROW()-ROW(C$20))/numlinhaCrono,0) -> 0 | J38: =J$18 -> Outros (R$) | K38: =IF($B35,ROUND($C38*K35,2),ROUND(SumCrono,2)) -> 0 | L38: 0 | M38: 0 | N38: 0 | O38: 0 | P38: 0 | Q38: 0 | R38: 0 | X38: =IF($B35,ROUND($C38*X35,2),ROUND(SumCrono,2)) -> 0
A39: =A38 -> 0 | B39: =IF(AND($B35,$C36>0),$J$19,"-") -> - | C39: =OFFSET(QCI!$O$16,(ROW()-ROW(C$20))/numlinhaCrono,0) -> 0 | J39: =J$19 -> Acum. Inv. (R$) | K39: =IF($B35,MIN($C39,MAX($K36:K36)),SumCrono) -> 0 | L39: =IF($B35,MIN($C39,MAX($K36:L36)),SumCrono) -> 0 | M39: =IF($B35,MIN($C39,MAX($K36:M36)),SumCrono) -> 0 | N39: =IF($B35,MIN($C39,MAX($K36:N36)),SumCrono) -> 0 | O39: =IF($B35,MIN($C39,MAX($K36:O36)),SumCrono) -> 0 | P39: =IF($B35,MIN($C39,MAX($K36:P36)),SumCrono) -> 0 | Q39: =IF($B35,MIN($C39,MAX($K36:Q36)),SumCrono) -> 0 | R39: =IF($B35,MIN($C39,MAX($K36:R36)),SumCrono) -> 0 | X39: =IF($B35,MIN($C39,MAX($K36:X36)),SumCrono) -> 0
A40: =OFFSET(QCI!X$16,(ROW(A40)-ROW(A$20))/numlinhaCrono,0)*numlinhaCrono -> 0 | B40: =OFFSET(QCI!Y$16,(ROW(B40)-ROW(B$20))/numlinhaCrono,0) -> TRUE | E40: =OFFSET(QCI!B$16,(ROW(E40)-ROW(E$20))/numlinhaCrono,0) -> 1 | F40: =OFFSET(QCI!C$16,(ROW(F40)-ROW(F$20))/numlinhaCrono,0) -> Meta | G40: =OFFSET(QCI!D$16,(ROW(G40)-ROW(G$20))/numlinhaCrono,0) -> 5. | H40: =OFFSET(QCI!G$16,(ROW(H40)-ROW(H$20))/numlinhaCrono,0) -> 0 | I40: =C41 -> 0 | J40: Acumulado (%) | K40: =IF($I40=0,0,MIN(1,MAX($K44:K44)/$I40)) -> 0 | L40: =IF($I40=0,0,MIN(1,MAX($K44:L44)/$I40)) -> 0 | M40: =IF($I40=0,0,MIN(1,MAX($K44:M44)/$I40)) -> 0 | N40: =IF($I40=0,0,MIN(1,MAX($K44:N44)/$I40)) -> 0 | O40: =IF($I40=0,0,MIN(1,MAX($K44:O44)/$I40)) -> 0 | P40: =IF($I40=0,0,MIN(1,MAX($K44:P44)/$I40)) -> 0 | Q40: =IF($I40=0,0,MIN(1,MAX($K44:Q44)/$I40)) -> 0 | R40: =IF($I40=0,0,MIN(1,MAX($K44:R44)/$I40)) -> 0 | X40: =IF($I40=0,0,MIN(1,MAX($K44:X44)/$I40)) -> 0
A41: =A40 -> 0 | C41: =OFFSET(QCI!$O$16,(ROW()-ROW(C$20))/numlinhaCrono,0) -> 0 | J41: =J$19 -> Acum. Inv. (R$) | K41: =IF($B40,MAX($J44:J44),K44) -> 0 | L41: =IF($B40,MAX($J44:K44),L44) -> 0 | M41: =IF($B40,MAX($J44:L44),M44) -> 0 | N41: =IF($B40,MAX($J44:M44),N44) -> 0 | O41: =IF($B40,MAX($J44:N44),O44) -> 0 | P41: =IF($B40,MAX($J44:O44),P44) -> 0 | Q41: =IF($B40,MAX($J44:P44),Q44) -> 0 | R41: =IF($B40,MAX($J44:Q44),R44) -> 0 | X41: =IF($B40,MAX($J44:W44),X44) -> 0
A42: =A41 -> 0 | B42: =IF(AND($B40,$C42>0),$J$17,"-") -> - | C42: =OFFSET(QCI!$M$16,(ROW()-ROW(C$20))/numlinhaCrono,0) -> 0 | J42: =J$17 -> CP Fin. (R$) | K42: =IF($B40,ROUND($C42*K40,2),ROUND(SumCrono,2)) -> 0 | L42: 0 | M42: 0 | N42: 0 | O42: 0 | P42: 0 | Q42: 0 | R42: 0 | X42: =IF($B40,ROUND($C42*X40,2),ROUND(SumCrono,2)) -> 0
A43: =A42 -> 0 | B43: =IF(AND($B40,$C43>0),$J$18,"-") -> - | C43: =OFFSET(QCI!$N$16,(ROW()-ROW(C$20))/numlinhaCrono,0) -> 0 | J43: =J$18 -> Outros (R$) | K43: =IF($B40,ROUND($C43*K40,2),ROUND(SumCrono,2)) -> 0 | L43: 0 | M43: 0 | N43: 0 | O43: 0 | P43: 0 | Q43: 0 | R43: 0 | X43: =IF($B40,ROUND($C43*X40,2),ROUND(SumCrono,2)) -> 0
A44: =A43 -> 0 | B44: =IF(AND($B40,$C41>0),$J$19,"-") -> - | C44: =OFFSET(QCI!$O$16,(ROW()-ROW(C$20))/numlinhaCrono,0) -> 0 | J44: =J$19 -> Acum. Inv. (R$) | K44: =IF($B40,MIN($C44,MAX($K41:K41)),SumCrono) -> 0 | L44: =IF($B40,MIN($C44,MAX($K41:L41)),SumCrono) -> 0 | M44: =IF($B40,MIN($C44,MAX($K41:M41)),SumCrono) -> 0 | N44: =IF($B40,MIN($C44,MAX($K41:N41)),SumCrono) -> 0 | O44: =IF($B40,MIN($C44,MAX($K41:O41)),SumCrono) -> 0 | P44: =IF($B40,MIN($C44,MAX($K41:P41)),SumCrono) -> 0 | Q44: =IF($B40,MIN($C44,MAX($K41:Q41)),SumCrono) -> 0 | R44: =IF($B40,MIN($C44,MAX($K41:R41)),SumCrono) -> 0 | X44: =IF($B40,MIN($C44,MAX($K41:X41)),SumCrono) -> 0
A45: =OFFSET(QCI!X$16,(ROW(A45)-ROW(A$20))/numlinhaCrono,0)*numlinhaCrono -> 0 | B45: =OFFSET(QCI!Y$16,(ROW(B45)-ROW(B$20))/numlinhaCrono,0) -> TRUE | E45: =OFFSET(QCI!B$16,(ROW(E45)-ROW(E$20))/numlinhaCrono,0) -> 1 | F45: =OFFSET(QCI!C$16,(ROW(F45)-ROW(F$20))/numlinhaCrono,0) -> Meta | G45: =OFFSET(QCI!D$16,(ROW(G45)-ROW(G$20))/numlinhaCrono,0) -> 6. | H45: =OFFSET(QCI!G$16,(ROW(H45)-ROW(H$20))/numlinhaCrono,0) -> 0 | I45: =C46 -> 0 | J45: Acumulado (%) | K45: =IF($I45=0,0,MIN(1,MAX($K49:K49)/$I45)) -> 0 | L45: =IF($I45=0,0,MIN(1,MAX($K49:L49)/$I45)) -> 0 | M45: =IF($I45=0,0,MIN(1,MAX($K49:M49)/$I45)) -> 0 | N45: =IF($I45=0,0,MIN(1,MAX($K49:N49)/$I45)) -> 0 | O45: =IF($I45=0,0,MIN(1,MAX($K49:O49)/$I45)) -> 0 | P45: =IF($I45=0,0,MIN(1,MAX($K49:P49)/$I45)) -> 0 | Q45: =IF($I45=0,0,MIN(1,MAX($K49:Q49)/$I45)) -> 0 | R45: =IF($I45=0,0,MIN(1,MAX($K49:R49)/$I45)) -> 0 | X45: =IF($I45=0,0,MIN(1,MAX($K49:X49)/$I45)) -> 0
A46: =A45 -> 0 | C46: =OFFSET(QCI!$O$16,(ROW()-ROW(C$20))/numlinhaCrono,0) -> 0 | J46: =J$19 -> Acum. Inv. (R$) | K46: =IF($B45,MAX($J49:J49),K49) -> 0 | L46: =IF($B45,MAX($J49:K49),L49) -> 0 | M46: =IF($B45,MAX($J49:L49),M49) -> 0 | N46: =IF($B45,MAX($J49:M49),N49) -> 0 | O46: =IF($B45,MAX($J49:N49),O49) -> 0 | P46: =IF($B45,MAX($J49:O49),P49) -> 0 | Q46: =IF($B45,MAX($J49:P49),Q49) -> 0 | R46: =IF($B45,MAX($J49:Q49),R49) -> 0 | X46: =IF($B45,MAX($J49:W49),X49) -> 0
A47: =A46 -> 0 | B47: =IF(AND($B45,$C47>0),$J$17,"-") -> - | C47: =OFFSET(QCI!$M$16,(ROW()-ROW(C$20))/numlinhaCrono,0) -> 0 | J47: =J$17 -> CP Fin. (R$) | K47: =IF($B45,ROUND($C47*K45,2),ROUND(SumCrono,2)) -> 0 | L47: 0 | M47: 0 | N47: 0 | O47: 0 | P47: 0 | Q47: 0 | R47: 0 | X47: =IF($B45,ROUND($C47*X45,2),ROUND(SumCrono,2)) -> 0
A48: =A47 -> 0 | B48: =IF(AND($B45,$C48>0),$J$18,"-") -> - | C48: =OFFSET(QCI!$N$16,(ROW()-ROW(C$20))/numlinhaCrono,0) -> 0 | J48: =J$18 -> Outros (R$) | K48: =IF($B45,ROUND($C48*K45,2),ROUND(SumCrono,2)) -> 0 | L48: 0 | M48: 0 | N48: 0 | O48: 0 | P48: 0 | Q48: 0 | R48: 0 | X48: =IF($B45,ROUND($C48*X45,2),ROUND(SumCrono,2)) -> 0
A49: =A48 -> 0 | B49: =IF(AND($B45,$C46>0),$J$19,"-") -> - | C49: =OFFSET(QCI!$O$16,(ROW()-ROW(C$20))/numlinhaCrono,0) -> 0 | J49: =J$19 -> Acum. Inv. (R$) | K49: =IF($B45,MIN($C49,MAX($K46:K46)),SumCrono) -> 0 | L49: =IF($B45,MIN($C49,MAX($K46:L46)),SumCrono) -> 0 | M49: =IF($B45,MIN($C49,MAX($K46:M46)),SumCrono) -> 0 | N49: =IF($B45,MIN($C49,MAX($K46:N46)),SumCrono) -> 0 | O49: =IF($B45,MIN($C49,MAX($K46:O46)),SumCrono) -> 0 | P49: =IF($B45,MIN($C49,MAX($K46:P46)),SumCrono) -> 0 | Q49: =IF($B45,MIN($C49,MAX($K46:Q46)),SumCrono) -> 0 | R49: =IF($B45,MIN($C49,MAX($K46:R46)),SumCrono) -> 0 | X49: =IF($B45,MIN($C49,MAX($K46:X46)),SumCrono) -> 0
A50: =OFFSET(QCI!X$16,(ROW(A50)-ROW(A$20))/numlinhaCrono,0)*numlinhaCrono -> 0 | B50: =OFFSET(QCI!Y$16,(ROW(B50)-ROW(B$20))/numlinhaCrono,0) -> TRUE | E50: =OFFSET(QCI!B$16,(ROW(E50)-ROW(E$20))/numlinhaCrono,0) -> 1 | F50: =OFFSET(QCI!C$16,(ROW(F50)-ROW(F$20))/numlinhaCrono,0) -> Meta | G50: =OFFSET(QCI!D$16,(ROW(G50)-ROW(G$20))/numlinhaCrono,0) -> 7. | H50: =OFFSET(QCI!G$16,(ROW(H50)-ROW(H$20))/numlinhaCrono,0) -> 0 | I50: =C51 -> 0 | J50: Acumulado (%) | K50: =IF($I50=0,0,MIN(1,MAX($K54:K54)/$I50)) -> 0 | L50: =IF($I50=0,0,MIN(1,MAX($K54:L54)/$I50)) -> 0 | M50: =IF($I50=0,0,MIN(1,MAX($K54:M54)/$I50)) -> 0 | N50: =IF($I50=0,0,MIN(1,MAX($K54:N54)/$I50)) -> 0 | O50: =IF($I50=0,0,MIN(1,MAX($K54:O54)/$I50)) -> 0 | P50: =IF($I50=0,0,MIN(1,MAX($K54:P54)/$I50)) -> 0 | Q50: =IF($I50=0,0,MIN(1,MAX($K54:Q54)/$I50)) -> 0 | R50: =IF($I50=0,0,MIN(1,MAX($K54:R54)/$I50)) -> 0 | X50: =IF($I50=0,0,MIN(1,MAX($K54:X54)/$I50)) -> 0
A51: =A50 -> 0 | C51: =OFFSET(QCI!$O$16,(ROW()-ROW(C$20))/numlinhaCrono,0) -> 0 | J51: =J$19 -> Acum. Inv. (R$) | K51: =IF($B50,MAX($J54:J54),K54) -> 0 | L51: =IF($B50,MAX($J54:K54),L54) -> 0 | M51: =IF($B50,MAX($J54:L54),M54) -> 0 | N51: =IF($B50,MAX($J54:M54),N54) -> 0 | O51: =IF($B50,MAX($J54:N54),O54) -> 0 | P51: =IF($B50,MAX($J54:O54),P54) -> 0 | Q51: =IF($B50,MAX($J54:P54),Q54) -> 0 | R51: =IF($B50,MAX($J54:Q54),R54) -> 0 | X51: =IF($B50,MAX($J54:W54),X54) -> 0
A52: =A51 -> 0 | B52: =IF(AND($B50,$C52>0),$J$17,"-") -> - | C52: =OFFSET(QCI!$M$16,(ROW()-ROW(C$20))/numlinhaCrono,0) -> 0 | J52: =J$17 -> CP Fin. (R$) | K52: =IF($B50,ROUND($C52*K50,2),ROUND(SumCrono,2)) -> 0 | L52: 0 | M52: 0 | N52: 0 | O52: 0 | P52: 0 | Q52: 0 | R52: 0 | X52: =IF($B50,ROUND($C52*X50,2),ROUND(SumCrono,2)) -> 0
A53: =A52 -> 0 | B53: =IF(AND($B50,$C53>0),$J$18,"-") -> - | C53: =OFFSET(QCI!$N$16,(ROW()-ROW(C$20))/numlinhaCrono,0) -> 0 | J53: =J$18 -> Outros (R$) | K53: =IF($B50,ROUND($C53*K50,2),ROUND(SumCrono,2)) -> 0 | L53: 0 | M53: 0 | N53: 0 | O53: 0 | P53: 0 | Q53: 0 | R53: 0 | X53: =IF($B50,ROUND($C53*X50,2),ROUND(SumCrono,2)) -> 0
A54: =A53 -> 0 | B54: =IF(AND($B50,$C51>0),$J$19,"-") -> - | C54: =OFFSET(QCI!$O$16,(ROW()-ROW(C$20))/numlinhaCrono,0) -> 0 | J54: =J$19 -> Acum. Inv. (R$) | K54: =IF($B50,MIN($C54,MAX($K51:K51)),SumCrono) -> 0 | L54: =IF($B50,MIN($C54,MAX($K51:L51)),SumCrono) -> 0 | M54: =IF($B50,MIN($C54,MAX($K51:M51)),SumCrono) -> 0 | N54: =IF($B50,MIN($C54,MAX($K51:N51)),SumCrono) -> 0 | O54: =IF($B50,MIN($C54,MAX($K51:O51)),SumCrono) -> 0 | P54: =IF($B50,MIN($C54,MAX($K51:P51)),SumCrono) -> 0 | Q54: =IF($B50,MIN($C54,MAX($K51:Q51)),SumCrono) -> 0 | R54: =IF($B50,MIN($C54,MAX($K51:R51)),SumCrono) -> 0 | X54: =IF($B50,MIN($C54,MAX($K51:X51)),SumCrono) -> 0
A55: =OFFSET(QCI!X$16,(ROW(A55)-ROW(A$20))/numlinhaCrono,0)*numlinhaCrono -> 0 | B55: =OFFSET(QCI!Y$16,(ROW(B55)-ROW(B$20))/numlinhaCrono,0) -> TRUE | E55: =OFFSET(QCI!B$16,(ROW(E55)-ROW(E$20))/numlinhaCrono,0) -> 1 | F55: =OFFSET(QCI!C$16,(ROW(F55)-ROW(F$20))/numlinhaCrono,0) -> Meta | G55: =OFFSET(QCI!D$16,(ROW(G55)-ROW(G$20))/numlinhaCrono,0) -> 8. | H55: =OFFSET(QCI!G$16,(ROW(H55)-ROW(H$20))/numlinhaCrono,0) -> 0 | I55: =C56 -> 0 | J55: Acumulado (%) | K55: =IF($I55=0,0,MIN(1,MAX($K59:K59)/$I55)) -> 0 | L55: =IF($I55=0,0,MIN(1,MAX($K59:L59)/$I55)) -> 0 | M55: =IF($I55=0,0,MIN(1,MAX($K59:M59)/$I55)) -> 0 | N55: =IF($I55=0,0,MIN(1,MAX($K59:N59)/$I55)) -> 0 | O55: =IF($I55=0,0,MIN(1,MAX($K59:O59)/$I55)) -> 0 | P55: =IF($I55=0,0,MIN(1,MAX($K59:P59)/$I55)) -> 0 | Q55: =IF($I55=0,0,MIN(1,MAX($K59:Q59)/$I55)) -> 0 | R55: =IF($I55=0,0,MIN(1,MAX($K59:R59)/$I55)) -> 0 | X55: =IF($I55=0,0,MIN(1,MAX($K59:X59)/$I55)) -> 0
A56: =A55 -> 0 | C56: =OFFSET(QCI!$O$16,(ROW()-ROW(C$20))/numlinhaCrono,0) -> 0 | J56: =J$19 -> Acum. Inv. (R$) | K56: =IF($B55,MAX($J59:J59),K59) -> 0 | L56: =IF($B55,MAX($J59:K59),L59) -> 0 | M56: =IF($B55,MAX($J59:L59),M59) -> 0 | N56: =IF($B55,MAX($J59:M59),N59) -> 0 | O56: =IF($B55,MAX($J59:N59),O59) -> 0 | P56: =IF($B55,MAX($J59:O59),P59) -> 0 | Q56: =IF($B55,MAX($J59:P59),Q59) -> 0 | R56: =IF($B55,MAX($J59:Q59),R59) -> 0 | X56: =IF($B55,MAX($J59:W59),X59) -> 0
A57: =A56 -> 0 | B57: =IF(AND($B55,$C57>0),$J$17,"-") -> - | C57: =OFFSET(QCI!$M$16,(ROW()-ROW(C$20))/numlinhaCrono,0) -> 0 | J57: =J$17 -> CP Fin. (R$) | K57: =IF($B55,ROUND($C57*K55,2),ROUND(SumCrono,2)) -> 0 | L57: 0 | M57: 0 | N57: 0 | O57: 0 | P57: 0 | Q57: 0 | R57: 0 | X57: =IF($B55,ROUND($C57*X55,2),ROUND(SumCrono,2)) -> 0
A58: =A57 -> 0 | B58: =IF(AND($B55,$C58>0),$J$18,"-") -> - | C58: =OFFSET(QCI!$N$16,(ROW()-ROW(C$20))/numlinhaCrono,0) -> 0 | J58: =J$18 -> Outros (R$) | K58: =IF($B55,ROUND($C58*K55,2),ROUND(SumCrono,2)) -> 0 | L58: 0 | M58: 0 | N58: 0 | O58: 0 | P58: 0 | Q58: 0 | R58: 0 | X58: =IF($B55,ROUND($C58*X55,2),ROUND(SumCrono,2)) -> 0
A59: =A58 -> 0 | B59: =IF(AND($B55,$C56>0),$J$19,"-") -> - | C59: =OFFSET(QCI!$O$16,(ROW()-ROW(C$20))/numlinhaCrono,0) -> 0 | J59: =J$19 -> Acum. Inv. (R$) | K59: =IF($B55,MIN($C59,MAX($K56:K56)),SumCrono) -> 0 | L59: =IF($B55,MIN($C59,MAX($K56:L56)),SumCrono) -> 0 | M59: =IF($B55,MIN($C59,MAX($K56:M56)),SumCrono) -> 0 | N59: =IF($B55,MIN($C59,MAX($K56:N56)),SumCrono) -> 0 | O59: =IF($B55,MIN($C59,MAX($K56:O56)),SumCrono) -> 0 | P59: =IF($B55,MIN($C59,MAX($K56:P56)),SumCrono) -> 0 | Q59: =IF($B55,MIN($C59,MAX($K56:Q56)),SumCrono) -> 0 | R59: =IF($B55,MIN($C59,MAX($K56:R56)),SumCrono) -> 0 | X59: =IF($B55,MIN($C59,MAX($K56:X56)),SumCrono) -> 0
A60: =OFFSET(QCI!X$16,(ROW(A60)-ROW(A$20))/numlinhaCrono,0)*numlinhaCrono -> 0 | B60: =OFFSET(QCI!Y$16,(ROW(B60)-ROW(B$20))/numlinhaCrono,0) -> TRUE | E60: =OFFSET(QCI!B$16,(ROW(E60)-ROW(E$20))/numlinhaCrono,0) -> 1 | F60: =OFFSET(QCI!C$16,(ROW(F60)-ROW(F$20))/numlinhaCrono,0) -> Meta | G60: =OFFSET(QCI!D$16,(ROW(G60)-ROW(G$20))/numlinhaCrono,0) -> 9. | H60: =OFFSET(QCI!G$16,(ROW(H60)-ROW(H$20))/numlinhaCrono,0) -> 0 | I60: =C61 -> 0 | J60: Acumulado (%) | K60: =IF($I60=0,0,MIN(1,MAX($K64:K64)/$I60)) -> 0 | L60: =IF($I60=0,0,MIN(1,MAX($K64:L64)/$I60)) -> 0 | M60: =IF($I60=0,0,MIN(1,MAX($K64:M64)/$I60)) -> 0 | N60: =IF($I60=0,0,MIN(1,MAX($K64:N64)/$I60)) -> 0 | O60: =IF($I60=0,0,MIN(1,MAX($K64:O64)/$I60)) -> 0 | P60: =IF($I60=0,0,MIN(1,MAX($K64:P64)/$I60)) -> 0 | Q60: =IF($I60=0,0,MIN(1,MAX($K64:Q64)/$I60)) -> 0 | R60: =IF($I60=0,0,MIN(1,MAX($K64:R64)/$I60)) -> 0 | X60: =IF($I60=0,0,MIN(1,MAX($K64:X64)/$I60)) -> 0
A61: =A60 -> 0 | C61: =OFFSET(QCI!$O$16,(ROW()-ROW(C$20))/numlinhaCrono,0) -> 0 | J61: =J$19 -> Acum. Inv. (R$) | K61: =IF($B60,MAX($J64:J64),K64) -> 0 | L61: =IF($B60,MAX($J64:K64),L64) -> 0 | M61: =IF($B60,MAX($J64:L64),M64) -> 0 | N61: =IF($B60,MAX($J64:M64),N64) -> 0 | O61: =IF($B60,MAX($J64:N64),O64) -> 0 | P61: =IF($B60,MAX($J64:O64),P64) -> 0 | Q61: =IF($B60,MAX($J64:P64),Q64) -> 0 | R61: =IF($B60,MAX($J64:Q64),R64) -> 0 | X61: =IF($B60,MAX($J64:W64),X64) -> 0
A62: =A61 -> 0 | B62: =IF(AND($B60,$C62>0),$J$17,"-") -> - | C62: =OFFSET(QCI!$M$16,(ROW()-ROW(C$20))/numlinhaCrono,0) -> 0 | J62: =J$17 -> CP Fin. (R$) | K62: =IF($B60,ROUND($C62*K60,2),ROUND(SumCrono,2)) -> 0 | L62: 0 | M62: 0 | N62: 0 | O62: 0 | P62: 0 | Q62: 0 | R62: 0 | X62: =IF($B60,ROUND($C62*X60,2),ROUND(SumCrono,2)) -> 0
A63: =A62 -> 0 | B63: =IF(AND($B60,$C63>0),$J$18,"-") -> - | C63: =OFFSET(QCI!$N$16,(ROW()-ROW(C$20))/numlinhaCrono,0) -> 0 | J63: =J$18 -> Outros (R$) | K63: =IF($B60,ROUND($C63*K60,2),ROUND(SumCrono,2)) -> 0 | L63: 0 | M63: 0 | N63: 0 | O63: 0 | P63: 0 | Q63: 0 | R63: 0 | X63: =IF($B60,ROUND($C63*X60,2),ROUND(SumCrono,2)) -> 0
A64: =A63 -> 0 | B64: =IF(AND($B60,$C61>0),$J$19,"-") -> - | C64: =OFFSET(QCI!$O$16,(ROW()-ROW(C$20))/numlinhaCrono,0) -> 0 | J64: =J$19 -> Acum. Inv. (R$) | K64: =IF($B60,MIN($C64,MAX($K61:K61)),SumCrono) -> 0 | L64: =IF($B60,MIN($C64,MAX($K61:L61)),SumCrono) -> 0 | M64: =IF($B60,MIN($C64,MAX($K61:M61)),SumCrono) -> 0 | N64: =IF($B60,MIN($C64,MAX($K61:N61)),SumCrono) -> 0 | O64: =IF($B60,MIN($C64,MAX($K61:O61)),SumCrono) -> 0 | P64: =IF($B60,MIN($C64,MAX($K61:P61)),SumCrono) -> 0 | Q64: =IF($B60,MIN($C64,MAX($K61:Q61)),SumCrono) -> 0 | R64: =IF($B60,MIN($C64,MAX($K61:R61)),SumCrono) -> 0 | X64: =IF($B60,MIN($C64,MAX($K61:X61)),SumCrono) -> 0
A65: =OFFSET(QCI!X$16,(ROW(A65)-ROW(A$20))/numlinhaCrono,0)*numlinhaCrono -> 0 | B65: =OFFSET(QCI!Y$16,(ROW(B65)-ROW(B$20))/numlinhaCrono,0) -> TRUE | E65: =OFFSET(QCI!B$16,(ROW(E65)-ROW(E$20))/numlinhaCrono,0) -> 1 | F65: =OFFSET(QCI!C$16,(ROW(F65)-ROW(F$20))/numlinhaCrono,0) -> Meta | G65: =OFFSET(QCI!D$16,(ROW(G65)-ROW(G$20))/numlinhaCrono,0) -> 10. | H65: =OFFSET(QCI!G$16,(ROW(H65)-ROW(H$20))/numlinhaCrono,0) -> 0 | I65: =C66 -> 0 | J65: Acumulado (%) | K65: =IF($I65=0,0,MIN(1,MAX($K69:K69)/$I65)) -> 0 | L65: =IF($I65=0,0,MIN(1,MAX($K69:L69)/$I65)) -> 0 | M65: =IF($I65=0,0,MIN(1,MAX($K69:M69)/$I65)) -> 0 | N65: =IF($I65=0,0,MIN(1,MAX($K69:N69)/$I65)) -> 0 | O65: =IF($I65=0,0,MIN(1,MAX($K69:O69)/$I65)) -> 0 | P65: =IF($I65=0,0,MIN(1,MAX($K69:P69)/$I65)) -> 0 | Q65: =IF($I65=0,0,MIN(1,MAX($K69:Q69)/$I65)) -> 0 | R65: =IF($I65=0,0,MIN(1,MAX($K69:R69)/$I65)) -> 0 | X65: =IF($I65=0,0,MIN(1,MAX($K69:X69)/$I65)) -> 0
A66: =A65 -> 0 | C66: =OFFSET(QCI!$O$16,(ROW()-ROW(C$20))/numlinhaCrono,0) -> 0 | J66: =J$19 -> Acum. Inv. (R$) | K66: =IF($B65,MAX($J69:J69),K69) -> 0 | L66: =IF($B65,MAX($J69:K69),L69) -> 0 | M66: =IF($B65,MAX($J69:L69),M69) -> 0 | N66: =IF($B65,MAX($J69:M69),N69) -> 0 | O66: =IF($B65,MAX($J69:N69),O69) -> 0 | P66: =IF($B65,MAX($J69:O69),P69) -> 0 | Q66: =IF($B65,MAX($J69:P69),Q69) -> 0 | R66: =IF($B65,MAX($J69:Q69),R69) -> 0 | X66: =IF($B65,MAX($J69:W69),X69) -> 0
A67: =A66 -> 0 | B67: =IF(AND($B65,$C67>0),$J$17,"-") -> - | C67: =OFFSET(QCI!$M$16,(ROW()-ROW(C$20))/numlinhaCrono,0) -> 0 | J67: =J$17 -> CP Fin. (R$) | K67: =IF($B65,ROUND($C67*K65,2),ROUND(SumCrono,2)) -> 0 | L67: 0 | M67: 0 | N67: 0 | O67: 0 | P67: 0 | Q67: 0 | R67: 0 | X67: =IF($B65,ROUND($C67*X65,2),ROUND(SumCrono,2)) -> 0
A68: =A67 -> 0 | B68: =IF(AND($B65,$C68>0),$J$18,"-") -> - | C68: =OFFSET(QCI!$N$16,(ROW()-ROW(C$20))/numlinhaCrono,0) -> 0 | J68: =J$18 -> Outros (R$) | K68: =IF($B65,ROUND($C68*K65,2),ROUND(SumCrono,2)) -> 0 | L68: 0 | M68: 0 | N68: 0 | O68: 0 | P68: 0 | Q68: 0 | R68: 0 | X68: =IF($B65,ROUND($C68*X65,2),ROUND(SumCrono,2)) -> 0
A69: =A68 -> 0 | B69: =IF(AND($B65,$C66>0),$J$19,"-") -> - | C69: =OFFSET(QCI!$O$16,(ROW()-ROW(C$20))/numlinhaCrono,0) -> 0 | J69: =J$19 -> Acum. Inv. (R$) | K69: =IF($B65,MIN($C69,MAX($K66:K66)),SumCrono) -> 0 | L69: =IF($B65,MIN($C69,MAX($K66:L66)),SumCrono) -> 0 | M69: =IF($B65,MIN($C69,MAX($K66:M66)),SumCrono) -> 0 | N69: =IF($B65,MIN($C69,MAX($K66:N66)),SumCrono) -> 0 | O69: =IF($B65,MIN($C69,MAX($K66:O66)),SumCrono) -> 0 | P69: =IF($B65,MIN($C69,MAX($K66:P66)),SumCrono) -> 0 | Q69: =IF($B65,MIN($C69,MAX($K66:Q66)),SumCrono) -> 0 | R69: =IF($B65,MIN($C69,MAX($K66:R66)),SumCrono) -> 0 | X69: =IF($B65,MIN($C69,MAX($K66:X66)),SumCrono) -> 0
E72: Observações:
E77: =QCI!H36 -> Local: | H77: =QCI!I36 -> Bom Jesus - SC | M77: Representante Tomador / Agente Promotor
E78: =QCI!H37 -> Data: | H78: =QCI!I37 -> 2018-01-25 | M78: Nome: | N78: =QCI!$D$36 -> Rafael Calza
M79: Cargo: | N79: =QCI!$D$37 -> Prefeito Municipal

Sheet RRE
T1: RRET
Q2: =QCI!O2 -> Grau de Sigilo
A3: =CONCATENATE("RRE - RELATÓRIO RESUMO DO EMPREENDIMENTO - ",IF(RREMode="RRET","TOMADOR","CAIXA")) -> RRE - RELATÓRIO RESUMO DO EMPREENDIMENTO - TOMADOR | Q3: =QCI!O3 -> #PUBLICO
W4: Acum. Previsto | X4: Acum. Chegada | Z4: Vmax | AA4: Vmax | AC4: Vmax | AD4: Vmax | AE4: Vmax | AF4: Vmax | AG4: Vmax | AH4: Vmax | AI4: Vmax | AJ4: Vmax | AK4: Vmax | AL4: Vmax | AM4: Vmax | AN4: Vmax | AO4: Vmax | AP4: Vmax | AQ4: Vmax | AR4: Vmax | AS4: Vmax | AT4: Vmax | AU4: Vmax | AV4: Vmax | AW4: Vmax | AX4: Vmax | AY4: Vmax | AZ4: Vmax
D5: Situação do TC/CR: | E5: Percentual previsto em: | H5: Medição nº: | I5: 1 | J5: Saldo a Reprogramar: | M5: =CRONO!$J$11 -> Repasse (R$) | N5: Contrapartida (R$) | V5: Repasse | W5: =W8-W7-W6 -> 0 | X5: =X8-X7-X6 -> 0
D6: =IF(F6="-","-",IF(R12<F6,"Atrasada",IF(R12>F6,"Adiantada","Normal"))) -> Atrasada | E6: =DATE(YEAR(J32),MONTH(J32),1) -> 2018-01-01 | F6: =IF($E$6<=DATE(YEAR(CRONO!$J$6),MONTH(CRONO!$J$6),1),"-",IF(COUNTIF(CRONO!$K$9:$S$9,RRE!$E$6)=0,1,HLOOKUP(RRE!$E$6,CRONO!$K$9:$S$16,7))) -> 0.3686 | M6: =QCI!L7 -> 0 | N6: =QCI!M7 -> 0 | V6: CP. Financ. | W6: =ROUND(SUMIF($V$15:$V$26,TRUE,$O$15:$O$26),2) -> 0 | X6: =IF(OR($Q$15<$M$15,$M13>$W6),MIN($M13,$J13),MIN($W6,$N$15-$N$14+$M13)) -> 0 | Z6: =MIN($J$13,$Q$15-Z$14) -> 0 | AA6: =MIN($J$13,$Q$15-AA$14) -> 0 | AC6: =MIN($J$13,$Q$15-AC$14) -> 0 | AD6: 0 | AE6: 0 | AF6: 0 | AG6: 0 | AH6: 0 | AI6: 0 | AJ6: 0 | AK6: 0 | AL6: 0 | AM6: 0 | AN6: 0 | AO6: 0 | AP6: 0 | AQ6: 0 | AR6: 0 | AS6: 0 | AT6: 0 | AU6: 0 | AV6: 0 | AW6: 0 | AX6: 0 | AY6: 0 | AZ6: 0
H7: ="Acumulado Anterior: "&TEXT(M15/(J15+10^-12),"0,00%") -> Acumulado Anterior: 0,00% | V7: =$H$14 -> Outros | W7: =ROUND(SUMIF($V$15:$V$26,TRUE,$P$15:$P$26),2) -> 0 | X7: =IF(OR($Q$15<$M$15,$M14>$W7),MIN($M14,$J14),MIN($W7,$N$15+$M14)) -> 0 | Z7: =MIN($J$14,$Q$15-Z$13) -> 0 | AA7: =MIN($J$14,$Q$15-AA$13) -> 0 | AC7: =MIN($J$14,$Q$15-AC$13) -> 0 | AD7: 0 | AE7: 0 | AF7: 0 | AG7: 0 | AH7: 0 | AI7: 0 | AJ7: 0 | AK7: 0 | AL7: 0 | AM7: 0 | AN7: 0 | AO7: 0 | AP7: 0 | AQ7: 0 | AR7: 0 | AS7: 0 | AT7: 0 | AU7: 0 | AV7: 0 | AW7: 0 | AX7: 0 | AY7: 0 | AZ7: 0
M8: =IF(RREMode="RRET","Valores Medidos (R$)","Valores Aferidos (R$)") -> Valores Medidos (R$) | R8: Execução Física Acum. | V8: Investimento | W8: =Q15 -> 0 | X8: =W8 -> 0 | Z8: Valores Aferidos Acumulados (R$) | AC8: Valores Medidos Acumulados (R$) | AF8: Valores Medidos Acumulados (R$) | AI8: Valores Medidos Acumulados (R$) | AL8: Valores Medidos Acumulados (R$) | AO8: Valores Medidos Acumulados (R$) | AR8: Valores Medidos Acumulados (R$) | AU8: Valores Medidos Acumulados (R$) | AX8: Valores Medidos Acumulados (R$)
A9: Etapa | B9: Meta / Sub-Meta | D9: Descrição da Meta / Sub-Meta | E9: Situação | F9: Quantidade | G9: Unid. | H9: Lote de Licitação / nº CTEF | I9: nº do BM | J9: Valor Total (R$) | K9: Acum. Período Anterior | M9: Acum. Período Anterior | N9: No Período | O9: Acum. Incluindo o Período | Q9: Acum. incluindo o Período | T9: Altura | U9: Rel. Forn. | Z9: Aferição Anterior | AA9: Aferição Atual | AC9: 1 | AD9: =OFFSET(AD9,0,-1)+1 -> 2 | AE9: =OFFSET(AE9,0,-1)+1 -> 3 | AF9: 4 | AG9: 5 | AH9: 6 | AI9: 7 | AJ9: 8 | AK9: 9 | AL9: 10 | AM9: 11 | AN9: 12 | AO9: 13 | AP9: 14 | AQ9: 15 | AR9: 16 | AS9: 17 | AT9: 18 | AU9: 19 | AV9: 20 | AW9: 21 | AX9: 22 | AY9: 23 | AZ9: =OFFSET(AZ9,0,-1)+1 -> 24
V10: Somar Meta | W10: Medição Ant. | X10: Medição Acum.
A11: =OFFSET(QCI!B$15,ROW(A11)-ROW(A$15),0) -> 1 | B11: =OFFSET(QCI!C$15,ROW(B11)-ROW(B$15),0) -> Meta | C11: =OFFSET(QCI!D$15,ROW(C11)-ROW(C$15),0) -> 1. | D11: =OFFSET(QCI!G$15,ROW(F11)-ROW(F$15),0) -> 0 | E11: =IF($V11,OFFSET(QCI!H$15,ROW(G11)-ROW(G$15),0),"") -> 0 | F11: =IF($B11="Sub-Meta","",OFFSET(QCI!I$15,ROW(H11)-ROW(H$15),0)) -> 0 | G11: =IF(ISERROR(OFFSET(QCI!J$15,ROW(J11)-ROW(J$15),0)),"",OFFSET(QCI!J$15,ROW(J11)-ROW(J$15),0)) ->  | H11: =IF($V11,OFFSET(QCI!K$15,ROW(M11)-ROW(M$15),0),"") -> 0 | J11: =OFFSET(QCI!O$15,ROW(AB11)-ROW(AB$15),0) -> 0 | K11: =ROUND(M11/($J11+10^-12)*OFFSET(QCI!$M$15,ROW(K11)-ROW(K$15),0),2) -> 0 | L11: =ROUND(M11/($J11+10^-12)*OFFSET(QCI!$N$15,ROW(L11)-ROW(L$15),0),2) -> 0 | M11: =IF($V11,IF(OR($E11="Licitado / em execução",$E11="Concluído"),IF(RREMode="RREV",ROUND(Z11,2),W11),0),SUM(OFFSET(M11,1,0,$T11))) -> 0 | N11: =ROUND(Q11,2)-ROUND(M11,2) -> 0 | O11: =ROUND(Q11/($J11+10^-12)*OFFSET(QCI!$M$15,ROW(O11)-ROW(O$15),0),2) -> 0 | P11: =ROUND(Q11/($J11+10^-12)*OFFSET(QCI!$N$15,ROW(P11)-ROW(P$15),0),2) -> 0 | Q11: =IF($V11,IF(OR($E11="Licitado / em execução",$E11="Concluído"),IF(RREMode="RREV",ROUND(AA11,2),X11),0),SUM(OFFSET(Q11,1,0,$T11))) -> 0 | R11: =Q11/($J11+10^-12) -> 0 | T11: =OFFSET(QCI!X$15,ROW(X11)-ROW(W$15),0) -> 0 | U11: =IF(AND(COUNTIF($H$9:$H11,$H11)=1,$H11<>"Adm. Direta",SUMIF($H$9:$H$26,$H11,$N$9:$N$26)>0,$V11),OFFSET(U11,-1,0)+1,OFFSET(U11,-1,0)) -> 0 | V11: =OFFSET(QCI!Y$15,ROW(W11)-ROW(X$15),0) -> TRUE | W11: =IF(AND(COUNTA(OFFSET($AC11,0,0,1,mcol-1))>0,mcol>1),ROUND((INDEX(OFFSET($AC11,0,0,1,mcol-1),MATCH(9.99999999999999E+307,OFFSET($AC11,0,0,1,mcol-1)))),2),0) -> 0 | X11: =IF(AND(COUNTA(OFFSET($AC11,0,0,1,mcol))>0,mcol>0),ROUND((INDEX(OFFSET($AC11,0,0,1,mcol),MATCH(9.99999999999999E+307,OFFSET($AC11,0,0,1,mcol)))),2),0) -> 0
B12: TOTAL | H12: =QCI!L9 -> Repasse | J12: =QCI!L15 -> 245850 | K12: =QCI!$M$9 -> Contrapartida Financeira | L12: =QCI!$N$9 -> Outros | M12: =M15-M14-M13 -> 0 | N12: 0 | O12: =QCI!$M$9 -> Contrapartida Financeira | P12: =QCI!$N$9 -> Outros | Q12: =Q15-Q14-Q13 -> 0 | R12: =Q15/(J15+10^-12) -> 0
H13: CP. Financ. | J13: =QCI!M15 -> 11145.37 | M13: =IF(AND(RREMode="RREV",Z13<>""),ROUND(Z13,2),IF(W13<>"",W13,ROUND(SUMIF($V$15:$V$26,TRUE,K$15:K$26),2))) -> 0 | N13: 0 | Q13: =IF(AND(RREMode="RREV",$AA13<>""),ROUND(AA13,2),IF(X13<>"",X13,X6)) -> 0 | V13: =H13 -> CP. Financ. | W13: =IF(COUNTIF($AC$9:$BA$9,$I$5-1)=0,"",IF(INDEX($AC13:$BA13,MATCH($I$5-1,$AC$9:$BA$9,0))="","",INDEX($AC13:$BA13,MATCH($I$5-1,$AC$9:$BA$9,0)))) ->  | X13: =IF(COUNTIF($AC$9:$BA$9,$I$5)=0,"",IF(INDEX($AC13:$BA13,MATCH($I$5,$AC$9:$BA$9,0))="","",INDEX($AC13:$BA13,MATCH($I$5,$AC$9:$BA$9,0)))) -> 
H14: =IF(QCI!N9="Outros","Outros","CP. Física") -> Outros | J14: =QCI!N15 -> 0 | M14: =IF(AND(RREMode="RREV",Z14<>""),ROUND(Z14,2),IF(W14<>"",W14,ROUND(SUMIF($V$15:$V$26,TRUE,L$15:L$26),2))) -> 0 | N14: 0 | Q14: =IF(AND(RREMode="RREV",$AA14<>""),ROUND(AA14,2),IF(X14<>"",X14,X7)) -> 0 | V14: =H14 -> Outros | W14: =IF(COUNTIF($AC$9:$BA$9,$I$5-1)=0,"",IF(INDEX($AC14:$BA14,MATCH($I$5-1,$AC$9:$BA$9,0))="","",INDEX($AC14:$BA14,MATCH($I$5-1,$AC$9:$BA$9,0)))) ->  | X14: =IF(COUNTIF($AC$9:$BA$9,$I$5)=0,"",IF(INDEX($AC14:$BA14,MATCH($I$5,$AC$9:$BA$9,0))="","",INDEX($AC14:$BA14,MATCH($I$5,$AC$9:$BA$9,0)))) -> 
H15: Investimento | J15: =QCI!O15 -> 256995.37 | M15: =ROUND(SUMIF($V$15:$V$26,TRUE,M$15:M$26),2) -> 0 | N15: 0 | Q15: =ROUND(SUMIF($V$15:$V$26,TRUE,Q$15:Q$26),2) -> 0
A16: =OFFSET(QCI!B$15,ROW(A16)-ROW(A$15),0) -> 1 | B16: =OFFSET(QCI!C$15,ROW(B16)-ROW(B$15),0) -> Meta | C16: =OFFSET(QCI!D$15,ROW(C16)-ROW(C$15),0) -> 1. | D16: =OFFSET(QCI!G$15,ROW(F16)-ROW(F$15),0) -> Capeamento asfaltico da Rua Domingos Michelin | E16: =IF($V16,OFFSET(QCI!H$15,ROW(G16)-ROW(G$15),0),"") -> Em Análise | F16: =IF($B16="Sub-Meta","",OFFSET(QCI!I$15,ROW(H16)-ROW(H$15),0)) -> 4134 | G16: =IF(ISERROR(OFFSET(QCI!J$15,ROW(J16)-ROW(J$15),0)),"",OFFSET(QCI!J$15,ROW(J16)-ROW(J$15),0)) -> m² | H16: =IF($V16,OFFSET(QCI!K$15,ROW(M16)-ROW(M$15),0),"") -> Lote 1 | J16: =OFFSET(QCI!O$15,ROW(AB16)-ROW(AB$15),0) -> 256995.37 | K16: =ROUND(M16/($J16+10^-12)*OFFSET(QCI!$M$15,ROW(K16)-ROW(K$15),0),2) -> 0 | L16: =ROUND(M16/($J16+10^-12)*OFFSET(QCI!$N$15,ROW(L16)-ROW(L$15),0),2) -> 0 | M16: =IF($V16,IF(OR($E16="Licitado / em execução",$E16="Concluído"),IF(RREMode="RREV",ROUND(Z16,2),W16),0),SUM(OFFSET(M16,1,0,$T16))) -> 0 | N16: 0 | O16: =ROUND(Q16/($J16+10^-12)*OFFSET(QCI!$M$15,ROW(O16)-ROW(O$15),0),2) -> 0 | P16: =ROUND(Q16/($J16+10^-12)*OFFSET(QCI!$N$15,ROW(P16)-ROW(P$15),0),2) -> 0 | Q16: =IF($V16,IF(OR($E16="Licitado / em execução",$E16="Concluído"),IF(RREMode="RREV",ROUND(AA16,2),X16),0),SUM(OFFSET(Q16,1,0,$T16))) -> 0 | R16: =Q16/($J16+10^-12) -> 0 | T16: =OFFSET(QCI!X$15,ROW(X16)-ROW(W$15),0) -> 0 | U16: =IF(AND(COUNTIF($H$9:$H16,$H16)=1,$H16<>"Adm. Direta",SUMIF($H$9:$H$26,$H16,$N$9:$N$26)>0,$V16),OFFSET(U16,-1,0)+1,OFFSET(U16,-1,0)) -> 0 | V16: =OFFSET(QCI!Y$15,ROW(W16)-ROW(X$15),0) -> TRUE | W16: =IF(AND(COUNTA(OFFSET($AC16,0,0,1,mcol-1))>0,mcol>1),ROUND((INDEX(OFFSET($AC16,0,0,1,mcol-1),MATCH(9.99999999999999E+307,OFFSET($AC16,0,0,1,mcol-1)))),2),0) -> 0 | X16: =IF(AND(COUNTA(OFFSET($AC16,0,0,1,mcol))>0,mcol>0),ROUND((INDEX(OFFSET($AC16,0,0,1,mcol),MATCH(9.99999999999999E+307,OFFSET($AC16,0,0,1,mcol)))),2),0) -> 0
A17: =OFFSET(QCI!B$15,ROW(A17)-ROW(A$15),0) -> 1 | B17: =OFFSET(QCI!C$15,ROW(B17)-ROW(B$15),0) -> Meta | C17: =OFFSET(QCI!D$15,ROW(C17)-ROW(C$15),0) -> 2. | D17: =OFFSET(QCI!G$15,ROW(F17)-ROW(F$15),0) -> 0 | E17: =IF($V17,OFFSET(QCI!H$15,ROW(G17)-ROW(G$15),0),"") -> 0 | F17: =IF($B17="Sub-Meta","",OFFSET(QCI!I$15,ROW(H17)-ROW(H$15),0)) -> 0 | G17: =IF(ISERROR(OFFSET(QCI!J$15,ROW(J17)-ROW(J$15),0)),"",OFFSET(QCI!J$15,ROW(J17)-ROW(J$15),0)) ->  | H17: =IF($V17,OFFSET(QCI!K$15,ROW(M17)-ROW(M$15),0),"") -> 0 | J17: =OFFSET(QCI!O$15,ROW(AB17)-ROW(AB$15),0) -> 0 | K17: =ROUND(M17/($J17+10^-12)*OFFSET(QCI!$M$15,ROW(K17)-ROW(K$15),0),2) -> 0 | L17: =ROUND(M17/($J17+10^-12)*OFFSET(QCI!$N$15,ROW(L17)-ROW(L$15),0),2) -> 0 | M17: 0 | N17: =ROUND(Q17,2)-ROUND(M17,2) -> 0 | O17: =ROUND(Q17/($J17+10^-12)*OFFSET(QCI!$M$15,ROW(O17)-ROW(O$15),0),2) -> 0 | P17: =ROUND(Q17/($J17+10^-12)*OFFSET(QCI!$N$15,ROW(P17)-ROW(P$15),0),2) -> 0 | Q17: 0 | R17: 0 | T17: =OFFSET(QCI!X$15,ROW(X17)-ROW(W$15),0) -> 0 | U17: =IF(AND(COUNTIF($H$9:$H17,$H17)=1,$H17<>"Adm. Direta",SUMIF($H$9:$H$26,$H17,$N$9:$N$26)>0,$V17),OFFSET(U17,-1,0)+1,OFFSET(U17,-1,0)) -> 0 | V17: =OFFSET(QCI!Y$15,ROW(W17)-ROW(X$15),0) -> TRUE | W17: 0 | X17: 0
A18: =OFFSET(QCI!B$15,ROW(A18)-ROW(A$15),0) -> 1 | B18: =OFFSET(QCI!C$15,ROW(B18)-ROW(B$15),0) -> Meta | C18: =OFFSET(QCI!D$15,ROW(C18)-ROW(C$15),0) -> 3. | D18: =OFFSET(QCI!G$15,ROW(F18)-ROW(F$15),0) -> 0 | E18: =IF($V18,OFFSET(QCI!H$15,ROW(G18)-ROW(G$15),0),"") -> 0 | F18: =IF($B18="Sub-Meta","",OFFSET(QCI!I$15,ROW(H18)-ROW(H$15),0)) -> 0 | G18: =IF(ISERROR(OFFSET(QCI!J$15,ROW(J18)-ROW(J$15),0)),"",OFFSET(QCI!J$15,ROW(J18)-ROW(J$15),0)) ->  | H18: =IF($V18,OFFSET(QCI!K$15,ROW(M18)-ROW(M$15),0),"") -> 0 | J18: =OFFSET(QCI!O$15,ROW(AB18)-ROW(AB$15),0) -> 0 | K18: =ROUND(M18/($J18+10^-12)*OFFSET(QCI!$M$15,ROW(K18)-ROW(K$15),0),2) -> 0 | L18: =ROUND(M18/($J18+10^-12)*OFFSET(QCI!$N$15,ROW(L18)-ROW(L$15),0),2) -> 0 | M18: 0 | N18: 0 | O18: =ROUND(Q18/($J18+10^-12)*OFFSET(QCI!$M$15,ROW(O18)-ROW(O$15),0),2) -> 0 | P18: =ROUND(Q18/($J18+10^-12)*OFFSET(QCI!$N$15,ROW(P18)-ROW(P$15),0),2) -> 0 | Q18: 0 | R18: 0 | T18: =OFFSET(QCI!X$15,ROW(X18)-ROW(W$15),0) -> 0 | U18: =IF(AND(COUNTIF($H$9:$H18,$H18)=1,$H18<>"Adm. Direta",SUMIF($H$9:$H$26,$H18,$N$9:$N$26)>0,$V18),OFFSET(U18,-1,0)+1,OFFSET(U18,-1,0)) -> 0 | V18: =OFFSET(QCI!Y$15,ROW(W18)-ROW(X$15),0) -> TRUE | W18: 0 | X18: 0
A19: =OFFSET(QCI!B$15,ROW(A19)-ROW(A$15),0) -> 1 | B19: =OFFSET(QCI!C$15,ROW(B19)-ROW(B$15),0) -> Meta | C19: =OFFSET(QCI!D$15,ROW(C19)-ROW(C$15),0) -> 4. | D19: =OFFSET(QCI!G$15,ROW(F19)-ROW(F$15),0) -> 0 | E19: =IF($V19,OFFSET(QCI!H$15,ROW(G19)-ROW(G$15),0),"") -> 0 | F19: =IF($B19="Sub-Meta","",OFFSET(QCI!I$15,ROW(H19)-ROW(H$15),0)) -> 0 | G19: =IF(ISERROR(OFFSET(QCI!J$15,ROW(J19)-ROW(J$15),0)),"",OFFSET(QCI!J$15,ROW(J19)-ROW(J$15),0)) ->  | H19: =IF($V19,OFFSET(QCI!K$15,ROW(M19)-ROW(M$15),0),"") -> 0 | J19: =OFFSET(QCI!O$15,ROW(AB19)-ROW(AB$15),0) -> 0 | K19: =ROUND(M19/($J19+10^-12)*OFFSET(QCI!$M$15,ROW(K19)-ROW(K$15),0),2) -> 0 | L19: =ROUND(M19/($J19+10^-12)*OFFSET(QCI!$N$15,ROW(L19)-ROW(L$15),0),2) -> 0 | M19: 0 | N19: 0 | O19: =ROUND(Q19/($J19+10^-12)*OFFSET(QCI!$M$15,ROW(O19)-ROW(O$15),0),2) -> 0 | P19: =ROUND(Q19/($J19+10^-12)*OFFSET(QCI!$N$15,ROW(P19)-ROW(P$15),0),2) -> 0 | Q19: 0 | R19: 0 | T19: =OFFSET(QCI!X$15,ROW(X19)-ROW(W$15),0) -> 0 | U19: =IF(AND(COUNTIF($H$9:$H19,$H19)=1,$H19<>"Adm. Direta",SUMIF($H$9:$H$26,$H19,$N$9:$N$26)>0,$V19),OFFSET(U19,-1,0)+1,OFFSET(U19,-1,0)) -> 0 | V19: =OFFSET(QCI!Y$15,ROW(W19)-ROW(X$15),0) -> TRUE | W19: 0 | X19: 0
A20: =OFFSET(QCI!B$15,ROW(A20)-ROW(A$15),0) -> 1 | B20: =OFFSET(QCI!C$15,ROW(B20)-ROW(B$15),0) -> Meta | C20: =OFFSET(QCI!D$15,ROW(C20)-ROW(C$15),0) -> 5. | D20: =OFFSET(QCI!G$15,ROW(F20)-ROW(F$15),0) -> 0 | E20: =IF($V20,OFFSET(QCI!H$15,ROW(G20)-ROW(G$15),0),"") -> 0 | F20: =IF($B20="Sub-Meta","",OFFSET(QCI!I$15,ROW(H20)-ROW(H$15),0)) -> 0 | G20: =IF(ISERROR(OFFSET(QCI!J$15,ROW(J20)-ROW(J$15),0)),"",OFFSET(QCI!J$15,ROW(J20)-ROW(J$15),0)) ->  | H20: =IF($V20,OFFSET(QCI!K$15,ROW(M20)-ROW(M$15),0),"") -> 0 | J20: =OFFSET(QCI!O$15,ROW(AB20)-ROW(AB$15),0) -> 0 | K20: =ROUND(M20/($J20+10^-12)*OFFSET(QCI!$M$15,ROW(K20)-ROW(K$15),0),2) -> 0 | L20: =ROUND(M20/($J20+10^-12)*OFFSET(QCI!$N$15,ROW(L20)-ROW(L$15),0),2) -> 0 | M20: 0 | N20: 0 | O20: =ROUND(Q20/($J20+10^-12)*OFFSET(QCI!$M$15,ROW(O20)-ROW(O$15),0),2) -> 0 | P20: =ROUND(Q20/($J20+10^-12)*OFFSET(QCI!$N$15,ROW(P20)-ROW(P$15),0),2) -> 0 | Q20: 0 | R20: 0 | T20: =OFFSET(QCI!X$15,ROW(X20)-ROW(W$15),0) -> 0 | U20: =IF(AND(COUNTIF($H$9:$H20,$H20)=1,$H20<>"Adm. Direta",SUMIF($H$9:$H$26,$H20,$N$9:$N$26)>0,$V20),OFFSET(U20,-1,0)+1,OFFSET(U20,-1,0)) -> 0 | V20: =OFFSET(QCI!Y$15,ROW(W20)-ROW(X$15),0) -> TRUE | W20: 0 | X20: 0
A21: =OFFSET(QCI!B$15,ROW(A21)-ROW(A$15),0) -> 1 | B21: =OFFSET(QCI!C$15,ROW(B21)-ROW(B$15),0) -> Meta | C21: =OFFSET(QCI!D$15,ROW(C21)-ROW(C$15),0) -> 6. | D21: =OFFSET(QCI!G$15,ROW(F21)-ROW(F$15),0) -> 0 | E21: =IF($V21,OFFSET(QCI!H$15,ROW(G21)-ROW(G$15),0),"") -> 0 | F21: =IF($B21="Sub-Meta","",OFFSET(QCI!I$15,ROW(H21)-ROW(H$15),0)) -> 0 | G21: =IF(ISERROR(OFFSET(QCI!J$15,ROW(J21)-ROW(J$15),0)),"",OFFSET(QCI!J$15,ROW(J21)-ROW(J$15),0)) ->  | H21: =IF($V21,OFFSET(QCI!K$15,ROW(M21)-ROW(M$15),0),"") -> 0 | J21: =OFFSET(QCI!O$15,ROW(AB21)-ROW(AB$15),0) -> 0 | K21: =ROUND(M21/($J21+10^-12)*OFFSET(QCI!$M$15,ROW(K21)-ROW(K$15),0),2) -> 0 | L21: =ROUND(M21/($J21+10^-12)*OFFSET(QCI!$N$15,ROW(L21)-ROW(L$15),0),2) -> 0 | M21: 0 | N21: 0 | O21: =ROUND(Q21/($J21+10^-12)*OFFSET(QCI!$M$15,ROW(O21)-ROW(O$15),0),2) -> 0 | P21: =ROUND(Q21/($J21+10^-12)*OFFSET(QCI!$N$15,ROW(P21)-ROW(P$15),0),2) -> 0 | Q21: 0 | R21: 0 | T21: =OFFSET(QCI!X$15,ROW(X21)-ROW(W$15),0) -> 0 | U21: =IF(AND(COUNTIF($H$9:$H21,$H21)=1,$H21<>"Adm. Direta",SUMIF($H$9:$H$26,$H21,$N$9:$N$26)>0,$V21),OFFSET(U21,-1,0)+1,OFFSET(U21,-1,0)) -> 0 | V21: =OFFSET(QCI!Y$15,ROW(W21)-ROW(X$15),0) -> TRUE | W21: 0 | X21: 0
A22: =OFFSET(QCI!B$15,ROW(A22)-ROW(A$15),0) -> 1 | B22: =OFFSET(QCI!C$15,ROW(B22)-ROW(B$15),0) -> Meta | C22: =OFFSET(QCI!D$15,ROW(C22)-ROW(C$15),0) -> 7. | D22: =OFFSET(QCI!G$15,ROW(F22)-ROW(F$15),0) -> 0 | E22: =IF($V22,OFFSET(QCI!H$15,ROW(G22)-ROW(G$15),0),"") -> 0 | F22: =IF($B22="Sub-Meta","",OFFSET(QCI!I$15,ROW(H22)-ROW(H$15),0)) -> 0 | G22: =IF(ISERROR(OFFSET(QCI!J$15,ROW(J22)-ROW(J$15),0)),"",OFFSET(QCI!J$15,ROW(J22)-ROW(J$15),0)) ->  | H22: =IF($V22,OFFSET(QCI!K$15,ROW(M22)-ROW(M$15),0),"") -> 0 | J22: =OFFSET(QCI!O$15,ROW(AB22)-ROW(AB$15),0) -> 0 | K22: =ROUND(M22/($J22+10^-12)*OFFSET(QCI!$M$15,ROW(K22)-ROW(K$15),0),2) -> 0 | L22: =ROUND(M22/($J22+10^-12)*OFFSET(QCI!$N$15,ROW(L22)-ROW(L$15),0),2) -> 0 | M22: 0 | N22: 0 | O22: =ROUND(Q22/($J22+10^-12)*OFFSET(QCI!$M$15,ROW(O22)-ROW(O$15),0),2) -> 0 | P22: =ROUND(Q22/($J22+10^-12)*OFFSET(QCI!$N$15,ROW(P22)-ROW(P$15),0),2) -> 0 | Q22: 0 | R22: 0 | T22: =OFFSET(QCI!X$15,ROW(X22)-ROW(W$15),0) -> 0 | U22: =IF(AND(COUNTIF($H$9:$H22,$H22)=1,$H22<>"Adm. Direta",SUMIF($H$9:$H$26,$H22,$N$9:$N$26)>0,$V22),OFFSET(U22,-1,0)+1,OFFSET(U22,-1,0)) -> 0 | V22: =OFFSET(QCI!Y$15,ROW(W22)-ROW(X$15),0) -> TRUE | W22: 0 | X22: 0
A23: =OFFSET(QCI!B$15,ROW(A23)-ROW(A$15),0) -> 1 | B23: =OFFSET(QCI!C$15,ROW(B23)-ROW(B$15),0) -> Meta | C23: =OFFSET(QCI!D$15,ROW(C23)-ROW(C$15),0) -> 8. | D23: =OFFSET(QCI!G$15,ROW(F23)-ROW(F$15),0) -> 0 | E23: =IF($V23,OFFSET(QCI!H$15,ROW(G23)-ROW(G$15),0),"") -> 0 | F23: =IF($B23="Sub-Meta","",OFFSET(QCI!I$15,ROW(H23)-ROW(H$15),0)) -> 0 | G23: =IF(ISERROR(OFFSET(QCI!J$15,ROW(J23)-ROW(J$15),0)),"",OFFSET(QCI!J$15,ROW(J23)-ROW(J$15),0)) ->  | H23: =IF($V23,OFFSET(QCI!K$15,ROW(M23)-ROW(M$15),0),"") -> 0 | J23: =OFFSET(QCI!O$15,ROW(AB23)-ROW(AB$15),0) -> 0 | K23: =ROUND(M23/($J23+10^-12)*OFFSET(QCI!$M$15,ROW(K23)-ROW(K$15),0),2) -> 0 | L23: =ROUND(M23/($J23+10^-12)*OFFSET(QCI!$N$15,ROW(L23)-ROW(L$15),0),2) -> 0 | M23: 0 | N23: 0 | O23: =ROUND(Q23/($J23+10^-12)*OFFSET(QCI!$M$15,ROW(O23)-ROW(O$15),0),2) -> 0 | P23: =ROUND(Q23/($J23+10^-12)*OFFSET(QCI!$N$15,ROW(P23)-ROW(P$15),0),2) -> 0 | Q23: 0 | R23: 0 | T23: =OFFSET(QCI!X$15,ROW(X23)-ROW(W$15),0) -> 0 | U23: =IF(AND(COUNTIF($H$9:$H23,$H23)=1,$H23<>"Adm. Direta",SUMIF($H$9:$H$26,$H23,$N$9:$N$26)>0,$V23),OFFSET(U23,-1,0)+1,OFFSET(U23,-1,0)) -> 0 | V23: =OFFSET(QCI!Y$15,ROW(W23)-ROW(X$15),0) -> TRUE | W23: 0 | X23: 0
A24: =OFFSET(QCI!B$15,ROW(A24)-ROW(A$15),0) -> 1 | B24: =OFFSET(QCI!C$15,ROW(B24)-ROW(B$15),0) -> Meta | C24: =OFFSET(QCI!D$15,ROW(C24)-ROW(C$15),0) -> 9. | D24: =OFFSET(QCI!G$15,ROW(F24)-ROW(F$15),0) -> 0 | E24: =IF($V24,OFFSET(QCI!H$15,ROW(G24)-ROW(G$15),0),"") -> 0 | F24: =IF($B24="Sub-Meta","",OFFSET(QCI!I$15,ROW(H24)-ROW(H$15),0)) -> 0 | G24: =IF(ISERROR(OFFSET(QCI!J$15,ROW(J24)-ROW(J$15),0)),"",OFFSET(QCI!J$15,ROW(J24)-ROW(J$15),0)) ->  | H24: =IF($V24,OFFSET(QCI!K$15,ROW(M24)-ROW(M$15),0),"") -> 0 | J24: =OFFSET(QCI!O$15,ROW(AB24)-ROW(AB$15),0) -> 0 | K24: =ROUND(M24/($J24+10^-12)*OFFSET(QCI!$M$15,ROW(K24)-ROW(K$15),0),2) -> 0 | L24: =ROUND(M24/($J24+10^-12)*OFFSET(QCI!$N$15,ROW(L24)-ROW(L$15),0),2) -> 0 | M24: 0 | N24: 0 | O24: =ROUND(Q24/($J24+10^-12)*OFFSET(QCI!$M$15,ROW(O24)-ROW(O$15),0),2) -> 0 | P24: =ROUND(Q24/($J24+10^-12)*OFFSET(QCI!$N$15,ROW(P24)-ROW(P$15),0),2) -> 0 | Q24: 0 | R24: 0 | T24: =OFFSET(QCI!X$15,ROW(X24)-ROW(W$15),0) -> 0 | U24: =IF(AND(COUNTIF($H$9:$H24,$H24)=1,$H24<>"Adm. Direta",SUMIF($H$9:$H$26,$H24,$N$9:$N$26)>0,$V24),OFFSET(U24,-1,0)+1,OFFSET(U24,-1,0)) -> 0 | V24: =OFFSET(QCI!Y$15,ROW(W24)-ROW(X$15),0) -> TRUE | W24: 0 | X24: 0
A25: =OFFSET(QCI!B$15,ROW(A25)-ROW(A$15),0) -> 1 | B25: =OFFSET(QCI!C$15,ROW(B25)-ROW(B$15),0) -> Meta | C25: =OFFSET(QCI!D$15,ROW(C25)-ROW(C$15),0) -> 10. | D25: =OFFSET(QCI!G$15,ROW(F25)-ROW(F$15),0) -> 0 | E25: =IF($V25,OFFSET(QCI!H$15,ROW(G25)-ROW(G$15),0),"") -> 0 | F25: =IF($B25="Sub-Meta","",OFFSET(QCI!I$15,ROW(H25)-ROW(H$15),0)) -> 0 | G25: =IF(ISERROR(OFFSET(QCI!J$15,ROW(J25)-ROW(J$15),0)),"",OFFSET(QCI!J$15,ROW(J25)-ROW(J$15),0)) ->  | H25: =IF($V25,OFFSET(QCI!K$15,ROW(M25)-ROW(M$15),0),"") -> 0 | J25: =OFFSET(QCI!O$15,ROW(AB25)-ROW(AB$15),0) -> 0 | K25: =ROUND(M25/($J25+10^-12)*OFFSET(QCI!$M$15,ROW(K25)-ROW(K$15),0),2) -> 0 | L25: =ROUND(M25/($J25+10^-12)*OFFSET(QCI!$N$15,ROW(L25)-ROW(L$15),0),2) -> 0 | M25: 0 | N25: 0 | O25: =ROUND(Q25/($J25+10^-12)*OFFSET(QCI!$M$15,ROW(O25)-ROW(O$15),0),2) -> 0 | P25: =ROUND(Q25/($J25+10^-12)*OFFSET(QCI!$N$15,ROW(P25)-ROW(P$15),0),2) -> 0 | Q25: 0 | R25: 0 | T25: =OFFSET(QCI!X$15,ROW(X25)-ROW(W$15),0) -> 0 | U25: =IF(AND(COUNTIF($H$9:$H25,$H25)=1,$H25<>"Adm. Direta",SUMIF($H$9:$H$26,$H25,$N$9:$N$26)>0,$V25),OFFSET(U25,-1,0)+1,OFFSET(U25,-1,0)) -> 0 | V25: =OFFSET(QCI!Y$15,ROW(W25)-ROW(X$15),0) -> TRUE | W25: 0 | X25: 0
A28: Observações:
A32: =QCI!H36 -> Local: | I32: =QCI!H37 -> Data: | J32: =TODAY() -> 2018-01-25
A34: =IF(RREMode="RRET","Responsável Técnico","Profissional Responsável CAIXA") -> Responsável Técnico | H34: =IF(RREMode="RREV","Responsável Gerencial CAIXA:",QCI!$C$35) -> Representante Tomador / Agente Promotor
A35: Nome: | H35: Nome:
A36: =IF(RREMode="RREV","Função:","Cargo:") -> Cargo: | H36: =IF(RREMode="RREV","Função:","Cargo:") -> Cargo:
A37: =IF(RREMode="RREV","Matrícula:","ART/RRT Fiscal.:") -> ART/RRT Fiscal.: | H37: =IF(RREMode="RREV","Matrícula:","") -> 
A39: =IF(RREMode="RRET","Responsável Social","Responsável Social CAIXA") -> Responsável Social | H39: =IF(RREMode="RREV","Responsável Operacional CAIXA","Responsável Financeiro") -> Responsável Financeiro
A40: Nome: | H40: Nome:
A41: =IF(RREMode="RREV","Função:","Cargo:") -> Cargo: | H41: =IF(RREMode="RREV","Função:","Cargo:") -> Cargo:
A42: =IF(RREMode="RREV","Matrícula:","") ->  | H42: =IF(RREMode="RREV","Matrícula:","") -> 

Sheet Ofício
F1: Grau de Sigilo
F2: # PÚBLICO
A6: Ofício n°:
A7: =CONCATENATE(RRE!$B$32,", ",TEXT(RRE!$J$32,"dd"" de ""mmmm"" de ""aaaa")) -> , 25 de janeiro de 2018 | G7: =A7 -> , 25 de janeiro de 2018
A8: À | G8: À
A9: CAIXA ECONÔMICA FEDERAL | G9: CAIXA ECONÔMICA FEDERAL
A10: GIGOV | G10: =CONCATENATE(A10," ",B10) -> GIGOV
A13: Assunto: | B13: =CONCATENATE("Solicitação de autorização de ",IF(DADOS!$J$22="FGTS","desembolso","desbloqueio")," de recursos - Medição n° ",RRE!$I$5) -> Solicitação de autorização de desbloqueio de recursos - Medição n° 1 | G13: Assunto: | H13: =CONCATENATE("Relação de Fornecedores - Medição n° ",RRE!$I$5) -> Relação de Fornecedores - Medição n° 1
A14: REF: | B14: =CONCATENATE(IF(DADOS!$J$22="FGTS","Contrato de Financiamento",IF(DADOS!$J$22="OGU PAC","Termo de Compromisso","Contrato de Repasse"))," - Operação nº: ",DADOS!$A$22,IF(DADOS!$B$22="","",CONCATENATE(" - SICONV nº: ",DADOS!$B$22))) -> Contrato de Repasse - Operação nº: 1.037.474-20/2017 - SICONV nº: 844520/2017 | G14: REF: | H14: =B14 -> Contrato de Repasse - Operação nº: 1.037.474-20/2017 - SICONV nº: 844520/2017
A16: Programa: | B16: =DADOS!$E$22 -> Planejamento Urbano | G16: Programa: | H16: =B16 -> Planejamento Urbano
A17: Objeto: | B17: =DADOS!$A$28 -> Implantação de pavimentação asfaltica em vias urbanas do Município de Bom Jesus SC. | G17: Objeto: | H17: =B17 -> Implantação de pavimentação asfaltica em vias urbanas do Município de Bom Jesus SC.
A18: =IF(DADOS!$J$22="OGU não-PAC","Proponente / Tomador:","Proponente / Compromissário:") -> Proponente / Tomador: | B18: =DADOS!$A$25 -> Município de Bom Jesus | G18: =A18 -> Proponente / Tomador: | H18: =B18 -> Município de Bom Jesus
A21: =IF(A10="GIGOV","Senhor Gerente","Senhor Superintendente") -> Senhor Gerente | G21: 1. Informamos abaixo a relação de fornecedores para a Solicitação de Recursos referenciada:
L22: Rel. Forn. | M22: CTEF
A23: =CONCATENATE("1. Vimos pelo presente, solicitar à Caixa Econômica Federal autorização para ",IF(DADOS!$J$22="FGTS","desembolso","desbloqueio")," da parcela de recursos relativa ao ",IF(DADOS!$J$22="FGTS","Contrato de Financiamento",IF(DADOS!$J$22="OGU PAC","Termo de Compromisso","Contrato de Repasse"))," em referência, conforme valores abaixo discriminados e, para tanto, anexamos a documentação necessária ao pleito.") -> 1. Vimos pelo presente, solicitar à Caixa Econômica Federal autorização para desbloqueio da parcela de recursos relativa ao Contrato de Repasse em referência, conforme valores abaixo discriminados e, para tanto, anexamos a documentação necessária ao pleito. | G23: CTEF: | H23: Nome do Fornecedor: | I23: CNPJ / CPF: | J23: Valor (R$):
G24: =IF(ISERROR($M24),"",$M24) ->  | H24: =IF($G24="","",IF(COUNTIF(DADOS!$B$56:$B$77,Ofício!$G24)=0,"(cadastre na aba Dados)",VLOOKUP(Ofício!$G24,DADOS!$B$56:$F$77,2,FALSE))) ->  | I24: =IF(OR($G24="",COUNTIF(DADOS!$B$56:$B$77,Ofício!$G24)=0),"",VLOOKUP(Ofício!$G24,DADOS!$B$56:$F$77,5,FALSE)) ->  | J24: =IF(ISERROR(M24),"",SUMIF(RRE!$H$15:$H$26,Ofício!G24,RRE!$N$15:$N$26)) ->  | L24: =OFFSET(L24,-1,0)+1 -> 1 | M24: =INDEX(RRE!$H$15:$H$26,MATCH(Ofício!L24,RRE!$U$15:$U$26,0)) -> 
H25: =IF($G25="","",IF(COUNTIF(DADOS!$B$56:$B$77,Ofício!$G25)=0,"(cadastre na aba Dados)",VLOOKUP(Ofício!$G25,DADOS!$B$56:$F$77,2,FALSE))) ->  | I25: =IF(OR($G25="",COUNTIF(DADOS!$B$56:$B$77,Ofício!$G25)=0),"",VLOOKUP(Ofício!$G25,DADOS!$B$56:$F$77,5,FALSE)) ->  | J25: =IF(ISERROR(M25),"",SUMIF(RRE!$H$15:$H$26,Ofício!G25,RRE!$N$15:$N$26)) ->  | L25: =OFFSET(L25,-1,0)+1 -> 2 | M25: =INDEX(RRE!$H$15:$H$26,MATCH(Ofício!L25,RRE!$U$15:$U$26,0)) -> 
H26: =IF($G26="","",IF(COUNTIF(DADOS!$B$56:$B$77,Ofício!$G26)=0,"(cadastre na aba Dados)",VLOOKUP(Ofício!$G26,DADOS!$B$56:$F$77,2,FALSE))) ->  | I26: =IF(OR($G26="",COUNTIF(DADOS!$B$56:$B$77,Ofício!$G26)=0),"",VLOOKUP(Ofício!$G26,DADOS!$B$56:$F$77,5,FALSE)) ->  | J26: =IF(ISERROR(M26),"",SUMIF(RRE!$H$15:$H$26,Ofício!G26,RRE!$N$15:$N$26)) ->  | L26: 3 | M26: =INDEX(RRE!$H$15:$H$26,MATCH(Ofício!L26,RRE!$U$15:$U$26,0)) -> 
C27: Valores Vigentes do TC/CR | D27: =CONCATENATE("Evolução da ",RRE!$I$5,"ª Medição") -> Evolução da 1ª Medição | E27: Valores Medidos Acumulados | H27: =IF($G27="","",IF(COUNTIF(DADOS!$B$56:$B$77,Ofício!$G27)=0,"(cadastre na aba Dados)",VLOOKUP(Ofício!$G27,DADOS!$B$56:$F$77,2,FALSE))) ->  | I27: =IF(OR($G27="",COUNTIF(DADOS!$B$56:$B$77,Ofício!$G27)=0),"",VLOOKUP(Ofício!$G27,DADOS!$B$56:$F$77,5,FALSE)) ->  | J27: =IF(ISERROR(M27),"",SUMIF(RRE!$H$15:$H$26,Ofício!G27,RRE!$N$15:$N$26)) ->  | L27: 4 | M27: =INDEX(RRE!$H$15:$H$26,MATCH(Ofício!L27,RRE!$U$15:$U$26,0)) -> 
H28: =IF($G28="","",IF(COUNTIF(DADOS!$B$56:$B$77,Ofício!$G28)=0,"(cadastre na aba Dados)",VLOOKUP(Ofício!$G28,DADOS!$B$56:$F$77,2,FALSE))) ->  | I28: =IF(OR($G28="",COUNTIF(DADOS!$B$56:$B$77,Ofício!$G28)=0),"",VLOOKUP(Ofício!$G28,DADOS!$B$56:$F$77,5,FALSE)) ->  | J28: =IF(ISERROR(M28),"",SUMIF(RRE!$H$15:$H$26,Ofício!G28,RRE!$N$15:$N$26)) ->  | L28: 5 | M28: =INDEX(RRE!$H$15:$H$26,MATCH(Ofício!L28,RRE!$U$15:$U$26,0)) -> 
A29: =CONCATENATE(QCI!$L$9,":") -> Repasse: | C29: =RRE!J12 -> 245850 | D29: =RRE!N12 -> 0 | E29: =RRE!Q12 -> 0 | H29: =IF($G29="","",IF(COUNTIF(DADOS!$B$56:$B$77,Ofício!$G29)=0,"(cadastre na aba Dados)",VLOOKUP(Ofício!$G29,DADOS!$B$56:$F$77,2,FALSE))) ->  | I29: =IF(OR($G29="",COUNTIF(DADOS!$B$56:$B$77,Ofício!$G29)=0),"",VLOOKUP(Ofício!$G29,DADOS!$B$56:$F$77,5,FALSE)) ->  | J29: =IF(ISERROR(M29),"",SUMIF(RRE!$H$15:$H$26,Ofício!G29,RRE!$N$15:$N$26)) ->  | L29: 6 | M29: =INDEX(RRE!$H$15:$H$26,MATCH(Ofício!L29,RRE!$U$15:$U$26,0)) -> 
A30: Contrapartida Financeira: | C30: =RRE!J13 -> 11145.37 | D30: =RRE!N13 -> 0 | E30: =RRE!Q13 -> 0 | H30: =IF($G30="","",IF(COUNTIF(DADOS!$B$56:$B$77,Ofício!$G30)=0,"(cadastre na aba Dados)",VLOOKUP(Ofício!$G30,DADOS!$B$56:$F$77,2,FALSE))) ->  | I30: =IF(OR($G30="",COUNTIF(DADOS!$B$56:$B$77,Ofício!$G30)=0),"",VLOOKUP(Ofício!$G30,DADOS!$B$56:$F$77,5,FALSE)) ->  | J30: =IF(ISERROR(M30),"",SUMIF(RRE!$H$15:$H$26,Ofício!G30,RRE!$N$15:$N$26)) ->  | L30: 7 | M30: =INDEX(RRE!$H$15:$H$26,MATCH(Ofício!L30,RRE!$U$15:$U$26,0)) -> 
A31: =CONCATENATE(QCI!$N$9,":") -> Outros: | C31: =RRE!J14 -> 0 | D31: =RRE!N14 -> 0 | E31: =RRE!Q14 -> 0 | H31: =IF($G31="","",IF(COUNTIF(DADOS!$B$56:$B$77,Ofício!$G31)=0,"(cadastre na aba Dados)",VLOOKUP(Ofício!$G31,DADOS!$B$56:$F$77,2,FALSE))) ->  | I31: =IF(OR($G31="",COUNTIF(DADOS!$B$56:$B$77,Ofício!$G31)=0),"",VLOOKUP(Ofício!$G31,DADOS!$B$56:$F$77,5,FALSE)) ->  | J31: =IF(ISERROR(M31),"",SUMIF(RRE!$H$15:$H$26,Ofício!G31,RRE!$N$15:$N$26)) ->  | L31: 8 | M31: =INDEX(RRE!$H$15:$H$26,MATCH(Ofício!L31,RRE!$U$15:$U$26,0)) -> 
A32: Investimento: | C32: =RRE!J15 -> 256995.37 | D32: =RRE!N15 -> 0 | E32: =RRE!Q15 -> 0 | H32: =IF($G32="","",IF(COUNTIF(DADOS!$B$56:$B$77,Ofício!$G32)=0,"(cadastre na aba Dados)",VLOOKUP(Ofício!$G32,DADOS!$B$56:$F$77,2,FALSE))) ->  | I32: =IF(OR($G32="",COUNTIF(DADOS!$B$56:$B$77,Ofício!$G32)=0),"",VLOOKUP(Ofício!$G32,DADOS!$B$56:$F$77,5,FALSE)) ->  | J32: =IF(ISERROR(M32),"",SUMIF(RRE!$H$15:$H$26,Ofício!G32,RRE!$N$15:$N$26)) ->  | L32: 9 | M32: =INDEX(RRE!$H$15:$H$26,MATCH(Ofício!L32,RRE!$U$15:$U$26,0)) -> 
A33: Execução Física: | C33: - | D33: =RRE!N15/(RRE!J15+10^-12) -> 0 | E33: =RRE!R12 -> 0 | H33: =IF($G33="","",IF(COUNTIF(DADOS!$B$56:$B$77,Ofício!$G33)=0,"(cadastre na aba Dados)",VLOOKUP(Ofício!$G33,DADOS!$B$56:$F$77,2,FALSE))) ->  | I33: =IF(OR($G33="",COUNTIF(DADOS!$B$56:$B$77,Ofício!$G33)=0),"",VLOOKUP(Ofício!$G33,DADOS!$B$56:$F$77,5,FALSE)) ->  | J33: =IF(ISERROR(M33),"",SUMIF(RRE!$H$15:$H$26,Ofício!G33,RRE!$N$15:$N$26)) ->  | L33: 10 | M33: =INDEX(RRE!$H$15:$H$26,MATCH(Ofício!L33,RRE!$U$15:$U$26,0)) -> 
H34: =IF($G34="","",IF(COUNTIF(DADOS!$B$56:$B$77,Ofício!$G34)=0,"(cadastre na aba Dados)",VLOOKUP(Ofício!$G34,DADOS!$B$56:$F$77,2,FALSE))) ->  | I34: =IF(OR($G34="",COUNTIF(DADOS!$B$56:$B$77,Ofício!$G34)=0),"",VLOOKUP(Ofício!$G34,DADOS!$B$56:$F$77,5,FALSE)) ->  | J34: =IF(ISERROR(M34),"",SUMIF(RRE!$H$15:$H$26,Ofício!G34,RRE!$N$15:$N$26)) ->  | L34: 11 | M34: =INDEX(RRE!$H$15:$H$26,MATCH(Ofício!L34,RRE!$U$15:$U$26,0)) -> 
H35: =IF($G35="","",IF(COUNTIF(DADOS!$B$56:$B$77,Ofício!$G35)=0,"(cadastre na aba Dados)",VLOOKUP(Ofício!$G35,DADOS!$B$56:$F$77,2,FALSE))) ->  | I35: =IF(OR($G35="",COUNTIF(DADOS!$B$56:$B$77,Ofício!$G35)=0),"",VLOOKUP(Ofício!$G35,DADOS!$B$56:$F$77,5,FALSE)) ->  | J35: =IF(ISERROR(M35),"",SUMIF(RRE!$H$15:$H$26,Ofício!G35,RRE!$N$15:$N$26)) ->  | L35: 12 | M35: =INDEX(RRE!$H$15:$H$26,MATCH(Ofício!L35,RRE!$U$15:$U$26,0)) -> 
A36: =IF(RRE.NumMedicao>1,"2. Encaminhamos ainda a documentação relativa à prestação de contas da etapa físico-financeira anterior.","") ->  | H36: =IF($G36="","",IF(COUNTIF(DADOS!$B$56:$B$77,Ofício!$G36)=0,"(cadastre na aba Dados)",VLOOKUP(Ofício!$G36,DADOS!$B$56:$F$77,2,FALSE))) ->  | I36: =IF(OR($G36="",COUNTIF(DADOS!$B$56:$B$77,Ofício!$G36)=0),"",VLOOKUP(Ofício!$G36,DADOS!$B$56:$F$77,5,FALSE)) ->  | J36: =IF(ISERROR(M36),"",SUMIF(RRE!$H$15:$H$26,Ofício!G36,RRE!$N$15:$N$26)) ->  | L36: 13 | M36: =INDEX(RRE!$H$15:$H$26,MATCH(Ofício!L36,RRE!$U$15:$U$26,0)) -> 
H37: =IF($G37="","",IF(COUNTIF(DADOS!$B$56:$B$77,Ofício!$G37)=0,"(cadastre na aba Dados)",VLOOKUP(Ofício!$G37,DADOS!$B$56:$F$77,2,FALSE))) ->  | I37: =IF(OR($G37="",COUNTIF(DADOS!$B$56:$B$77,Ofício!$G37)=0),"",VLOOKUP(Ofício!$G37,DADOS!$B$56:$F$77,5,FALSE)) ->  | J37: =IF(ISERROR(M37),"",SUMIF(RRE!$H$15:$H$26,Ofício!G37,RRE!$N$15:$N$26)) ->  | L37: 14 | M37: =INDEX(RRE!$H$15:$H$26,MATCH(Ofício!L37,RRE!$U$15:$U$26,0)) -> 
A38: =IF(AND(RRE.NumMedicao>1,NOT(ISBLANK(Import.SICONV))),"3. Na oportunidade, informamos que a execução financeira da parcela anterior está devidamente comprovada no SICONV.","") ->  | H38: =IF($G38="","",IF(COUNTIF(DADOS!$B$56:$B$77,Ofício!$G38)=0,"(cadastre na aba Dados)",VLOOKUP(Ofício!$G38,DADOS!$B$56:$F$77,2,FALSE))) ->  | I38: =IF(OR($G38="",COUNTIF(DADOS!$B$56:$B$77,Ofício!$G38)=0),"",VLOOKUP(Ofício!$G38,DADOS!$B$56:$F$77,5,FALSE)) ->  | J38: =IF(ISERROR(M38),"",SUMIF(RRE!$H$15:$H$26,Ofício!G38,RRE!$N$15:$N$26)) ->  | L38: 15 | M38: =INDEX(RRE!$H$15:$H$26,MATCH(Ofício!L38,RRE!$U$15:$U$26,0)) -> 
H39: =IF($G39="","",IF(COUNTIF(DADOS!$B$56:$B$77,Ofício!$G39)=0,"(cadastre na aba Dados)",VLOOKUP(Ofício!$G39,DADOS!$B$56:$F$77,2,FALSE))) ->  | I39: =IF(OR($G39="",COUNTIF(DADOS!$B$56:$B$77,Ofício!$G39)=0),"",VLOOKUP(Ofício!$G39,DADOS!$B$56:$F$77,5,FALSE)) ->  | J39: =IF(ISERROR(M39),"",SUMIF(RRE!$H$15:$H$26,Ofício!G39,RRE!$N$15:$N$26)) ->  | L39: 16 | M39: =INDEX(RRE!$H$15:$H$26,MATCH(Ofício!L39,RRE!$U$15:$U$26,0)) -> 
H40: =IF($G40="","",IF(COUNTIF(DADOS!$B$56:$B$77,Ofício!$G40)=0,"(cadastre na aba Dados)",VLOOKUP(Ofício!$G40,DADOS!$B$56:$F$77,2,FALSE))) ->  | I40: =IF(OR($G40="",COUNTIF(DADOS!$B$56:$B$77,Ofício!$G40)=0),"",VLOOKUP(Ofício!$G40,DADOS!$B$56:$F$77,5,FALSE)) ->  | J40: =IF(ISERROR(M40),"",SUMIF(RRE!$H$15:$H$26,Ofício!G40,RRE!$N$15:$N$26)) ->  | L40: 17 | M40: =INDEX(RRE!$H$15:$H$26,MATCH(Ofício!L40,RRE!$U$15:$U$26,0)) -> 
A41: =IF($A$23="",0,1)+IF($A$36="",0,1)+IF($A$38="",0,1)+1&". Informamos também a manutenção da Placa de Obra em local visível e de acordo com padrão estabelecido pela Presidência da República, constante do Manual Visual de Placas e Adesivos de Obra." -> 2. Informamos também a manutenção da Placa de Obra em local visível e de acordo com padrão estabelecido pela Presidência da República, constante do Manual Visual de Placas e Adesivos de Obra. | H41: =IF($G41="","",IF(COUNTIF(DADOS!$B$56:$B$77,Ofício!$G41)=0,"(cadastre na aba Dados)",VLOOKUP(Ofício!$G41,DADOS!$B$56:$F$77,2,FALSE))) ->  | I41: =IF(OR($G41="",COUNTIF(DADOS!$B$56:$B$77,Ofício!$G41)=0),"",VLOOKUP(Ofício!$G41,DADOS!$B$56:$F$77,5,FALSE)) ->  | J41: =IF(ISERROR(M41),"",SUMIF(RRE!$H$15:$H$26,Ofício!G41,RRE!$N$15:$N$26)) ->  | L41: 18 | M41: =INDEX(RRE!$H$15:$H$26,MATCH(Ofício!L41,RRE!$U$15:$U$26,0)) -> 
H42: =IF($G42="","",IF(COUNTIF(DADOS!$B$56:$B$77,Ofício!$G42)=0,"(cadastre na aba Dados)",VLOOKUP(Ofício!$G42,DADOS!$B$56:$F$77,2,FALSE))) ->  | I42: =IF(OR($G42="",COUNTIF(DADOS!$B$56:$B$77,Ofício!$G42)=0),"",VLOOKUP(Ofício!$G42,DADOS!$B$56:$F$77,5,FALSE)) ->  | J42: =IF(ISERROR(M42),"",SUMIF(RRE!$H$15:$H$26,Ofício!G42,RRE!$N$15:$N$26)) ->  | L42: 19 | M42: =INDEX(RRE!$H$15:$H$26,MATCH(Ofício!L42,RRE!$U$15:$U$26,0)) -> 
H43: =IF($G43="","",IF(COUNTIF(DADOS!$B$56:$B$77,Ofício!$G43)=0,"(cadastre na aba Dados)",VLOOKUP(Ofício!$G43,DADOS!$B$56:$F$77,2,FALSE))) ->  | I43: =IF(OR($G43="",COUNTIF(DADOS!$B$56:$B$77,Ofício!$G43)=0),"",VLOOKUP(Ofício!$G43,DADOS!$B$56:$F$77,5,FALSE)) ->  | J43: =IF(ISERROR(M43),"",SUMIF(RRE!$H$15:$H$26,Ofício!G43,RRE!$N$15:$N$26)) ->  | L43: 20 | M43: =INDEX(RRE!$H$15:$H$26,MATCH(Ofício!L43,RRE!$U$15:$U$26,0)) -> 
H44: =IF($G44="","",IF(COUNTIF(DADOS!$B$56:$B$77,Ofício!$G44)=0,"(cadastre na aba Dados)",VLOOKUP(Ofício!$G44,DADOS!$B$56:$F$77,2,FALSE))) ->  | I44: =IF(OR($G44="",COUNTIF(DADOS!$B$56:$B$77,Ofício!$G44)=0),"",VLOOKUP(Ofício!$G44,DADOS!$B$56:$F$77,5,FALSE)) ->  | J44: =IF(ISERROR(M44),"",SUMIF(RRE!$H$15:$H$26,Ofício!G44,RRE!$N$15:$N$26)) ->  | L44: 21 | M44: =INDEX(RRE!$H$15:$H$26,MATCH(Ofício!L44,RRE!$U$15:$U$26,0)) -> 
H45: =IF($G45="","",IF(COUNTIF(DADOS!$B$56:$B$77,Ofício!$G45)=0,"(cadastre na aba Dados)",VLOOKUP(Ofício!$G45,DADOS!$B$56:$F$77,2,FALSE))) ->  | I45: =IF(OR($G45="",COUNTIF(DADOS!$B$56:$B$77,Ofício!$G45)=0),"",VLOOKUP(Ofício!$G45,DADOS!$B$56:$F$77,5,FALSE)) ->  | J45: =IF(ISERROR(M45),"",SUMIF(RRE!$H$15:$H$26,Ofício!G45,RRE!$N$15:$N$26)) ->  | L45: 22 | M45: =INDEX(RRE!$H$15:$H$26,MATCH(Ofício!L45,RRE!$U$15:$U$26,0)) -> 
A48: Atenciosamente, | G48: Atenciosamente,
A53: =RRE!I35 -> 0 | G53: =A53 -> 0
A54: =B18 -> Município de Bom Jesus | G54: =A54 -> Município de Bom Jesus

Sheet Listas (hidden)
D1: Sub-Itens de Investimento
B2: Itens de Investimento | C2: Unidades habitacionais | D2: =COUNTA(C:C)-1 -> 3 | E2: Equipamentos comunitários | F2: =COUNTA(E:E)-1 -> 6 | G2: Pavimentação | H2: =COUNTA(G:G)-1 -> 6 | I2: Drenagem | J2: =COUNTA(I:I)-1 -> 6 | K2: Abastecimento de água | L2: =COUNTA(K:K)-1 -> 11 | M2: Esgotamento sanitário | N2: =COUNTA(M:M)-1 -> 8 | O2: Energia elétrica e iluminação pública | P2: =COUNTA(O:O)-1 -> 4 | Q2: Coleta e tratamento de resíduos sólidos | R2: =COUNTA(Q:Q)-1 -> 6 | S2: Contenção e estabilização de encostas | T2: =COUNTA(S:S)-1 -> 2 | U2: Regularização fundiária | V2: =COUNTA(U:U)-1 -> 2 | W2: Aquisição de terreno | X2: =COUNTA(W:W)-1 -> 2 | Y2: Aquisição de equipamentos e insumos | Z2: =COUNTA(Y:Y)-1 -> 1 | AA2: Elaboração de estudos e projetos | AB2: =COUNTA(AA:AA)-1 -> 1 | AC2: Instrumentos e ações em planejamento e gestão pública | AD2: =COUNTA(AC:AC)-1 -> 1 | AE2: Ações complementares às obras | AF2: =COUNTA(AE:AE)-1 -> 3 | AG2: Gerenciamento | AH2: =COUNTA(AG:AG)-1 -> 1 | AI2: Trabalho social | AJ2: =COUNTA(AI:AI)-1 -> 4
B3: Unidades habitacionais | C3: Aquisição | D3: un | E3: Convivência comunitária, assistência social e/ou comunitária | F3: m² | G3: Capeamento de vias | H3: m² | I3: Obras de microdrenagem | J3: m | K3: Captação subterrânea | L3: m³/s | M3: Ligações domiciliares e/ou intradomiciliares | N3: un | O3: Iluminação pública - luminárias | P3: un | Q3: Acondicionamento | R3: un | S3: Estabilização de taludes | T3: m² | U3: Desapropriacões/Indenizações | V3: m² | W3: Aquisição de terreno | X3: m² | Y3: Aquisição de equipamentos e insumos | Z3: un | AA3: Elaboração de estudos e projetos | AB3: un | AC3: Instrumentos e ações em planejamento e gestão pública | AD3: un | AE3: Avaliação pós intervenção | AF3: un | AG3: Gerenciamento | AH3: %CT | AI3: Projeto de Trabalho Social Preliminar | AJ3: nº fam
B4: Equipamentos comunitários | C4: Construção | D4: un | E4: Educação e cultura | F4: m² | G4: Recapeamento de vias | H4: m² | I4: Desassoreamento de cursos de água | J4: m | K4: Captação superficial | L4: m³/s | M4: Rede coletora e/ou condominial | N4: m | O4: Ligações domiciliares | P4: un | Q4: Aterro sanitário e/ou disposição final | R4: m³ | S4: Obras complementares a ações de redução de risco e/ou contenções | T4: m² | U4: Projeto de Regularização Fundiária | V4: m² | W4: Benfeitorias | X4: m² | AE4: Demolições | AF4: un | AI4: Projeto de Trabalho Social | AJ4: nº fam
B5: Pavimentação | C5: Reforma e/ou melhoria | D5: un | E5: Esportes | F5: m² | G5: Obras de artes especiais | H5: m | I5: Canalização de cursos de água | J5: m | K5: Estação de bombeamento de água bruta | L5: m³/s | M5: Coletor tronco e/ou interceptores | N5: m | O5: Linhas de distribuição - baixa tensão | P5: m | Q5: Erradicação de lixões | R5: m³ | AE5: Plano de Reassentamento e medidas compensatórias | AF5: un | AI5: Plano de Desenvolvimento Socioterritorial | AJ5: nº fam
B6: Drenagem | E6: Lazer e turismo | F6: m² | G6: Pavimentação de calçadas | H6: m² | I6: Recomposição de vegetação ciliar, renaturalização de cursos de água ou restauração de margens | J6: m² | K6: Adução | L6: m | M6: Emissário | N6: m | O6: Linhas de transmissão - alta tensão | P6: m | Q6: Sistema de coleta seletiva tradicional, transporte e/ou equipamentos | R6: un | AI6: Plano de Gestão Condominial | AJ6: nº fam
B7: Abastecimento de água | E7: Saúde | F7: m² | G7: Pavimentação de vias | H7: m² | I7: Reservatório de amortecimento de cheias | J7: m³ | K7: Estação de Tratamento de Água (ETA) | L7: m³/s | M7: Estação Elevatória | N7: m³/s | Q7: Tratamento local | R7: un
B8: Esgotamento sanitário | E8: Segurança pública | F8: m² | G8: Sinalização | H8: m² | I8: Estação de Bombeamento | J8: m³/s | K8: Estação de bombeamento de água tratada | L8: m³/s | M8: Estação de Tratamento de Esgoto (ETE) | N8: m³/s | Q8: Usinas de reciclagem | R8: m²
B9: Energia elétrica e iluminação pública | K9: Linha de recalque | L9: m | M9: Sistema simplificado de tratamento | N9: m³/s
B10: Coleta e tratamento de resíduos sólidos | K10: Reservação | L10: m³ | M10: Unidades sanitárias | N10: un
B11: Contenção e estabilização de encostas | K11: Rede de distribuição | L11: m
B12: Regularização fundiária | K12: Ligações domiciliares e/ou intradomiciliares | L12: un
B13: Aquisição de terreno | K13: Sistema simplificado de abastecimento | L13: m
B14: Aquisição de equipamentos e insumos
B15: Elaboração de estudos e projetos
B16: Instrumentos e ações em planejamento e gestão pública
B17: Ações complementares às obras
B18: Gerenciamento
B19: Trabalho social
